Workbook

Sheet ST_Full
A1: Logistic Regression Significance Testing for the Full Model | O1: Covariance Matrix Estimation for Computing se(b-hat)
A2: Y = 1 if recommended the resataurant, else 0 | H2: b-hat | I2: se(b-hat) | J2: Wald | K2: z | L2: p-value | M2: exp(b-hat)
A3: Intercept Term | H3: -5.15334047 | I3: =SQRT(INDEX(O3:AM3,,ROWS($1:1))) -> 0.7700407516 | J3: =(H3/I3)^2 -> 44.78682276 | K3: =H3/I3 -> -6.692295777 | L3: =2*(1-NORMDIST(ABS(K3),0,1,1)) -> 2.19695373e-11 | O3: =MINVERSE(MMULT(MMULT(TRANSPOSE(C23:M1022),IF(Q23:Q1022=TRANSPOSE(Q23:Q1022),Q23:Q1022,0)),C23:M1022)) -> 0.5929627592 | P3: -0.008022817894 | Q3: -0.009468863553 | R3: -0.01098478268 | S3: -0.007882276779 | T3: -0.009926810953 | U3: -0.01119552774 | V3: -0.01036168708 | W3: -0.007617817007 | X3: -0.01327721675 | Y3: -0.02878765846
A4: X1 = the side dishes and salads are delicious | H4: 0.170544086 | I4: =SQRT(INDEX(O4:AM4,,ROWS($1:2))) -> 0.1251097417 | J4: =(H4/I4)^2 -> 1.858194083 | K4: 1.363155928 | L4: 0.1728333737 | M4: =EXP(H4) -> 1.185949935 | O4: -0.008022817894 | P4: 0.01565244747 | Q4: -0.006500291834 | R4: -0.006943781824 | S4: 2.999082032e-05 | T4: -0.001026952256 | U4: 0.0003975177341 | V4: -0.0007252447766 | W4: 0.0003924153191 | X4: 0.0005131232569 | Y4: -0.0003700205517
A5: X2 = the entrées are delicious | H5: 0.389906817 | I5: =SQRT(INDEX(O5:AM5,,ROWS($1:3))) -> 0.1240072946 | J5: 9.886149888 | K5: 3.144224847 | L5: 0.001665274338 | M5: 1.476843171 | O5: -0.009468863553 | P5: -0.006500291834 | Q5: 0.01537780913 | R5: -0.006323792377 | S5: 8.400905635e-05 | T5: 0.0007318897105 | U5: -0.0002226390484 | V5: -0.0006521181341 | W5: -9.28315588e-05 | X5: 3.185584454e-05 | Y5: -0.001474021298
A6: X3 = the desserts are delicious | H6: -0.1253362846 | I6: =SQRT(INDEX(O6:AM6,,ROWS($1:4))) -> 0.1233996322 | J6: 1.031634606 | K6: -1.01569415 | L6: 0.3097750546 | M6: 0.8822001824 | O6: -0.01098478268 | P6: -0.006943781824 | Q6: -0.006323792377 | R6: 0.01522746923 | S6: -0.0004277893401 | T6: 0.0002632572289 | U6: 4.764387118e-05 | V6: 0.001394319623 | W6: -0.0001391155513 | X6: -0.0004220770736 | Y6: -0.000298017788
A7: X4 = parking at the restaurant is ample | H7: 0.1561470776 | I7: =SQRT(INDEX(O7:AM7,,ROWS($1:5))) -> 0.08015431666 | J7: 3.79501843 | K7: 1.948080704 | L7: 0.05140530726 | M7: 1.168998124 | O7: -0.007882276779 | P7: 2.999082032e-05 | Q7: 8.400905635e-05 | R7: -0.0004277893401 | S7: 0.006424714479 | T7: -0.002484533367 | U7: -0.002267124397 | V7: -0.0004931811431 | W7: 0.0002515516636 | X7: -0.000107883936 | Y7: 6.529053546e-05
A8: X5 = the lighting in the restaurant is appropriate | H8: -0.04898096336 | I8: =SQRT(INDEX(O8:AM8,,ROWS($1:6))) -> 0.07937922687 | J8: 0.3807508799 | K8: -0.6170501438 | L8: 0.5372016519 | M8: 0.9521992562 | O8: -0.009926810953 | P8: -0.001026952256 | Q8: 0.0007318897105 | R8: 0.0002632572289 | S8: -0.002484533367 | T8: 0.006301061659 | U8: -0.002242559397 | V8: -1.656831555e-05 | W8: 0.0002608983806 | X8: 0.0001227039928 | Y8: -2.959052912e-05
A9: X6 = the noise level in the restaurant is not distracting to me | H9: 0.1411632242 | I9: =SQRT(INDEX(O9:AM9,,ROWS($1:7))) -> 0.07781738381 | J9: 3.290712086 | K9: 1.814031997 | L9: 0.06967279978 | M9: 1.151612604 | O9: -0.01119552774 | P9: 0.0003975177341 | Q9: -0.0002226390484 | R9: 4.764387118e-05 | S9: -0.002267124397 | T9: -0.002242559397 | U9: 0.006055545224 | V9: 0.0004360485302 | W9: -0.0005095287195 | X9: 0.0003979303241 | Y9: -8.259519101e-06
A10: X7 = the wait for beverage service is excessive | H10: -0.002619382955 | I10: =SQRT(INDEX(O10:AM10,,ROWS($1:8))) -> 0.121206328 | J10: 0.000467032825 | K10: -0.02161094225 | L10: 0.9827583049 | M10: 0.9973840446 | O10: -0.01036168708 | P10: -0.0007252447766 | Q10: -0.0006521181341 | R10: 0.001394319623 | S10: -0.0004931811431 | T10: -1.656831555e-05 | U10: 0.0004360485302 | V10: 0.01469097395 | W10: -0.006289200579 | X10: -0.006392020072 | Y10: 0.001107922025
A11: X8 = the wait for food service is excessive | H11: -0.4057062604 | I11: =SQRT(INDEX(O11:AM11,,ROWS($1:9))) -> 0.1206667254 | J11: 11.30442206 | K11: -3.36220494 | L11: 0.0007732271283 | M11: 0.6665059178 | O11: -0.007617817007 | P11: 0.0003924153191 | Q11: -9.28315588e-05 | R11: -0.0001391155513 | S11: 0.0002515516636 | T11: 0.0002608983806 | U11: -0.0005095287195 | V11: -0.006289200579 | W11: 0.01456045863 | X11: -0.005500863142 | Y11: 0.0003470990828
A12: X9 = the wait for the check is excessive | H12: -0.07871812692 | I12: =SQRT(INDEX(O12:AM12,,ROWS($1:10))) -> 0.1200504674 | J12: 0.4299538008 | K12: -0.6557086249 | L12: 0.5120116184 | M12: 0.9243004231 | O12: -0.01327721675 | P12: 0.0005131232569 | Q12: 3.185584454e-05 | R12: -0.0004220770736 | S12: -0.000107883936 | T12: 0.0001227039928 | U12: 0.0003979303241 | V12: -0.006392020072 | W12: -0.005500863142 | X12: 0.01441211473 | Y12: 0.0009215907274
A13: X10 = restaurant service personnel are courteous and friendly | H13: 0.2443852716 | I13: =SQRT(INDEX(O13:AM13,,ROWS($1:11))) -> 0.07788107615 | J13: 9.846597139 | K13: 3.137928798 | L13: 0.001701462031 | M13: 1.276836164 | O13: -0.02878765846 | P13: -0.0003700205517 | Q13: -0.001474021298 | R13: -0.000298017788 | S13: 6.529053546e-05 | T13: -2.959052912e-05 | U13: -8.259519101e-06 | V13: 0.001107922025 | W13: 0.0003470990828 | X13: 0.0009215907274 | Y13: 0.006065462022
A15: Deviance (-2LL) | F15: =-2*SUM(P23:P1022) -> 1108.175219
A16: Akaike's Information Criterion (AIC) = | F16: =F15+2*11 -> 1130.175219
A17: Bayesian Information Criterion (BIC) = | F17: =F15+11*LOG(1000) -> 1141.175219
A19: % Correctly Classified (Training) = | F19: =SUM(S23:S1022)/1000 -> 0.78
A20: % Correctly Classified (Holdout) = | F20: =SUM(S1023:S1522)/500 -> 0.752
A22: Customer | B22: Y | C22: X0 | D22: X1 | E22: X2 | F22: X3 | G22: X4 | H22: X5 | I22: X6 | J22: X7 | K22: X8 | L22: X9 | M22: X10 | O22: Y = 1 | P22: LL | Q22: V | R22: PRED | S22: Correct?
A23: 1 | B23: 0 | C23: 1 | D23: 7 | E23: 7 | F23: 7 | G23: 6 | H23: 6 | I23: 6 | J23: 5 | K23: 4 | L23: 6 | M23: 5 | O23: =1/(1+EXP(-(H$3*C23+H$4*D23+H$5*E23+H$6*F23+H$7*G23+H$8*H23+H$9*I23+H$10*J23+H$11*K23+H$12*L23+H$13*M23))) -> 0.1818495615 | P23: =B23*LN(O23)+(1-B23)*LN(1-O23) -> -0.2007090491 | Q23: =O23*(1-O23)+0.000001*RAND() -> 0.1487806933 | R23: =IF(O23>0.5,1,0) -> 0 | S23: =IF(B23=R23,1,0) -> 1
A24: 2 | B24: 0 | C24: 1 | D24: 7 | E24: 7 | F24: 7 | G24: 7 | H24: 7 | I24: 7 | J24: 2 | K24: 3 | L24: 2 | M24: 6 | O24: =1/(1+EXP(-(H$3*C24+H$4*D24+H$5*E24+H$6*F24+H$7*G24+H$8*H24+H$9*I24+H$10*J24+H$11*K24+H$12*L24+H$13*M24))) -> 0.4297882977 | P24: -0.5617475795 | Q24: =O24*(1-O24)+0.000001*RAND() -> 0.2450711129 | R24: 0 | S24: 1
A25: 3 | B25: 0 | C25: 1 | D25: 7 | E25: 7 | F25: 7 | G25: 5 | H25: 4 | I25: 7 | J25: 2 | K25: 3 | L25: 2 | M25: 7 | O25: 0.449255078 | P25: -0.5964835135 | Q25: 0.2474256482 | R25: 0 | S25: 1
A26: 4 | B26: 1 | C26: 1 | D26: 7 | E26: 6 | F26: 6 | G26: 4 | H26: 5 | I26: 6 | J26: 3 | K26: 3 | L26: 2 | M26: 4 | O26: 0.1750403536 | P26: -1.742738739 | Q26: 0.1444018687 | R26: 0 | S26: 0
A27: 5 | B27: 1 | C27: 1 | D27: 6 | E27: 7 | F27: 7 | G27: 7 | H27: 7 | I27: 7 | J27: 6 | K27: 5 | L27: 5 | M27: 6 | O27: 0.1807457004 | P27: -1.710664206 | Q27: 0.1480774989 | R27: 0 | S27: 0
A28: 6 | B28: 1 | C28: 1 | D28: 7 | E28: 7 | F28: 7 | G28: 6 | H28: 5 | I28: 5 | J28: 1 | K28: 1 | L28: 2 | M28: 7 | O28: 0.6071124602 | P28: -0.499041233 | Q28: 0.2385269511 | R28: 1 | S28: 1
A29: 7 | B29: 1 | C29: 1 | D29: 4 | E29: 5 | F29: 4 | G29: 7 | H29: 7 | I29: 7 | J29: 3 | K29: 3 | L29: 3 | M29: 2 | O29: 0.09474474459 | P29: -2.356568903 | Q29: 0.08576830304 | R29: 0 | S29: 0
A30: 8 | B30: 0 | C30: 1 | D30: 7 | E30: 7 | F30: 7 | G30: 6 | H30: 7 | I30: 7 | J30: 1 | K30: 1 | L30: 1 | M30: 7 | O30: 0.6678048254 | P30: -1.102032607 | Q30: 0.2218423417 | R30: 1 | S30: 0
A31: 9 | B31: 1 | C31: 1 | D31: 7 | E31: 7 | F31: 7 | G31: 7 | H31: 7 | I31: 7 | J31: 1 | K31: 1 | L31: 1 | M31: 7 | O31: 0.7014935909 | P31: -0.3545435158 | Q31: 0.2094010921 | R31: 1 | S31: 1
A32: 10 | B32: 0 | C32: 1 | D32: 7 | E32: 7 | F32: 7 | G32: 4 | H32: 7 | I32: 2 | J32: 1 | K32: 1 | L32: 1 | M32: 7 | O32: 0.4207154741 | P32: -0.545961513 | Q32: 0.2437144199 | R32: 0 | S32: 1
A33: 11 | B33: 0 | C33: 1 | D33: 7 | E33: 6 | F33: 7 | G33: 7 | H33: 7 | I33: 7 | J33: 2 | K33: 3 | L33: 3 | M33: 4 | O33: 0.2244167643 | P33: -0.2541399705 | Q33: 0.1740541854 | R33: 0 | S33: 1
A34: 12 | B34: 1 | C34: 1 | D34: 7 | E34: 7 | F34: 7 | G34: 3 | H34: 3 | I34: 3 | J34: 1 | K34: 1 | L34: 1 | M34: 7 | O34: 0.46533147 | P34: -0.7650052886 | Q34: 0.2487990747 | R34: 0 | S34: 0
A35: 13 | B35: 1 | C35: 1 | D35: 7 | E35: 7 | F35: 6 | G35: 7 | H35: 6 | I35: 4 | J35: 4 | K35: 4 | L35: 3 | M35: 5 | O35: 0.2199537712 | P35: -1.514337886 | Q35: 0.1715750605 | R35: 0 | S35: 0
A36: 14 | B36: 0 | C36: 1 | D36: 7 | E36: 7 | F36: 7 | G36: 6 | H36: 6 | I36: 6 | J36: 3 | K36: 2 | L36: 2 | M36: 4 | O36: 0.350525994 | P36: -0.4315924653 | Q36: 0.2276577656 | R36: 0 | S36: 1
A37: 15 | B37: 1 | C37: 1 | D37: 7 | E37: 7 | F37: 7 | G37: 4 | H37: 3 | I37: 4 | J37: 1 | K37: 1 | L37: 1 | M37: 6 | O37: 0.4785202374 | P37: -0.7370567756 | Q37: 0.2495395349 | R37: 0 | S37: 0
A38: 16 | B38: 1 | C38: 1 | D38: 7 | E38: 7 | F38: 7 | G38: 5 | H38: 6 | I38: 6 | J38: 1 | K38: 1 | L38: 1 | M38: 7 | O38: 0.6106259059 | P38: -0.4932707726 | Q38: 0.2377620108 | R38: 1 | S38: 1
A39: 17 | B39: 1 | C39: 1 | D39: 5 | E39: 6 | F39: 6 | G39: 7 | H39: 7 | I39: 7 | J39: 1 | K39: 1 | L39: 1 | M39: 7 | O39: 0.5618716785 | P39: -0.5764817852 | Q39: 0.2461724111 | R39: 1 | S39: 1
A40: 18 | B40: 1 | C40: 1 | D40: 2 | E40: 2 | F40: 2 | G40: 7 | H40: 7 | I40: 3 | J40: 5 | K40: 4 | L40: 5 | M40: 5 | O40: 0.01951153612 | P40: -3.936749393 | Q40: 0.01913148484 | R40: 0 | S40: 0
A41: 19 | B41: 1 | C41: 1 | D41: 2 | E41: 3 | F41: 4 | G41: 7 | H41: 6 | I41: 6 | J41: 4 | K41: 4 | L41: 4 | M41: 5 | O41: 0.03827238678 | P41: -3.263026615 | Q41: 0.03680810012 | R41: 0 | S41: 0
A42: 20 | B42: 0 | C42: 1 | D42: 7 | E42: 7 | F42: 7 | G42: 5 | H42: 6 | I42: 4 | J42: 1 | K42: 3 | L42: 3 | M42: 4 | O42: 0.177352708 | P42: -0.195227734 | Q42: 0.1458987568 | R42: 0 | S42: 1
A43: 21 | B43: 0 | C43: 1 | D43: 7 | E43: 7 | F43: 7 | G43: 7 | H43: 5 | I43: 6 | J43: 5 | K43: 6 | L43: 5 | M43: 5 | O43: 0.1159419777 | P43: -0.1232325824 | Q43: 0.102500364 | R43: 0 | S43: 1
A44: 22 | B44: 0 | C44: 1 | D44: 7 | E44: 7 | F44: 7 | G44: 7 | H44: 7 | I44: 7 | J44: 2 | K44: 2 | L44: 2 | M44: 5 | O44: 0.4696887258 | P44: -0.634291135 | Q44: 0.2490821173 | R44: 0 | S44: 1
A45: 23 | B45: 0 | C45: 1 | D45: 6 | E45: 7 | F45: 6 | G45: 6 | H45: 3 | I45: 6 | J45: 3 | K45: 2 | L45: 3 | M45: 7 | O45: 0.5348048277 | P45: -0.7652982361 | Q45: 0.2487887882 | R45: 1 | S45: 0
A46: 24 | B46: 1 | C46: 1 | D46: 7 | E46: 7 | F46: 7 | G46: 5 | H46: 6 | I46: 5 | J46: 1 | K46: 1 | L46: 1 | M46: 7 | O46: 0.5765876206 | P46: -0.5506279636 | Q46: 0.2441350692 | R46: 1 | S46: 1
A47: 25 | B47: 1 | C47: 1 | D47: 7 | E47: 7 | F47: 7 | G47: 7 | H47: 7 | I47: 7 | J47: 1 | K47: 1 | L47: 2 | M47: 7 | O47: 0.6847531083 | P47: -0.3786969315 | Q47: 0.2158671731 | R47: 1 | S47: 1
A48: 26 | B48: 0 | C48: 1 | D48: 7 | E48: 6 | F48: 5 | G48: 6 | H48: 7 | I48: 7 | J48: 1 | K48: 1 | L48: 1 | M48: 6 | O48: 0.5780207834 | P48: -0.8627992158 | Q48: 0.2439128997 | R48: 1 | S48: 0
A49: 27 | B49: 1 | C49: 1 | D49: 7 | E49: 7 | F49: 7 | G49: 7 | H49: 7 | I49: 7 | J49: 1 | K49: 1 | L49: 1 | M49: 7 | O49: 0.7014935909 | P49: -0.3545435158 | Q49: 0.2094009624 | R49: 1 | S49: 1
A50: 28 | B50: 1 | C50: 1 | D50: 7 | E50: 7 | F50: 7 | G50: 7 | H50: 6 | I50: 5 | J50: 1 | K50: 1 | L50: 1 | M50: 7 | O50: 0.6504629725 | P50: -0.4300709043 | Q50: 0.22736158 | R50: 1 | S50: 1
A51: 29 | B51: 0 | C51: 1 | D51: 2 | E51: 2 | F51: 2 | G51: 7 | H51: 7 | I51: 7 | J51: 1 | K51: 1 | L51: 1 | M51: 3 | O51: 0.09123119611 | P51: -0.09566455831 | Q51: 0.08290892546 | R51: 0 | S51: 1
A52: 30 | B52: 1 | C52: 1 | D52: 7 | E52: 6 | F52: 7 | G52: 7 | H52: 7 | I52: 7 | J52: 1 | K52: 1 | L52: 1 | M52: 7 | O52: 0.6140843661 | P52: -0.4876229562 | Q52: 0.2369849401 | R52: 1 | S52: 1
A53: 31 | B53: 1 | C53: 1 | D53: 6 | E53: 6 | F53: 5 | G53: 7 | H53: 7 | I53: 7 | J53: 4 | K53: 4 | L53: 4 | M53: 4 | O53: 0.1611569211 | P53: -1.825376724 | Q53: 0.1351860533 | R53: 0 | S53: 0
A54: 32 | B54: 0 | C54: 1 | D54: 4 | E54: 5 | F54: 5 | G54: 7 | H54: 5 | I54: 7 | J54: 1 | K54: 1 | L54: 1 | M54: 7 | O54: 0.477916617 | P54: -0.6499279663 | Q54: 0.2495125169 | R54: 0 | S54: 1
A55: 33 | B55: 0 | C55: 1 | D55: 7 | E55: 7 | F55: 7 | G55: 7 | H55: 7 | I55: 7 | J55: 4 | K55: 5 | L55: 5 | M55: 7 | O55: 0.251404547 | P55: -0.2895565575 | Q55: 0.1882008423 | R55: 0 | S55: 1
A56: 34 | B56: 1 | C56: 1 | D56: 6 | E56: 5 | F56: 7 | G56: 5 | H56: 7 | I56: 5 | J56: 3 | K56: 4 | L56: 3 | M56: 6 | O56: 0.08990977815 | P56: -2.408948576 | Q56: 0.08182606097 | R56: 0 | S56: 0
A57: 35 | B57: 0 | C57: 1 | D57: 5 | E57: 7 | F57: 7 | G57: 4 | H57: 1 | I57: 3 | J57: 1 | K57: 1 | L57: 1 | M57: 7 | O57: 0.4437698286 | P57: -0.586573093 | Q57: 0.2468387903 | R57: 0 | S57: 1
A58: 36 | B58: 0 | C58: 1 | D58: 6 | E58: 5 | F58: 5 | G58: 7 | H58: 7 | I58: 6 | J58: 2 | K58: 1 | L58: 1 | M58: 5 | O58: 0.3827675187 | P58: -0.482509533 | Q58: 0.2362565922 | R58: 0 | S58: 1
A59: 37 | B59: 0 | C59: 1 | D59: 6 | E59: 7 | F59: 7 | G59: 3 | H59: 2 | I59: 3 | J59: 3 | K59: 4 | L59: 4 | M59: 5 | O59: 0.09905735362 | P59: -0.1043136789 | Q59: 0.08924548923 | R59: 0 | S59: 1
A60: 38 | B60: 1 | C60: 1 | D60: 7 | E60: 7 | F60: 7 | G60: 4 | H60: 4 | I60: 3 | J60: 1 | K60: 1 | L60: 1 | M60: 7 | O60: 0.4920679455 | P60: -0.7091384714 | Q60: 0.2499371063 | R60: 0 | S60: 0
A61: 39 | B61: 0 | C61: 1 | D61: 5 | E61: 6 | F61: 6 | G61: 6 | H61: 6 | I61: 5 | J61: 3 | K61: 3 | L61: 4 | M61: 6 | O61: 0.1918673688 | P61: -0.2130290864 | Q61: 0.1550547219 | R61: 0 | S61: 1
A62: 40 | B62: 1 | C62: 1 | D62: 7 | E62: 7 | F62: 7 | G62: 4 | H62: 3 | I62: 2 | J62: 1 | K62: 1 | L62: 1 | M62: 7 | O62: 0.4690612919 | P62: -0.7570218327 | Q62: 0.2490428306 | R62: 0 | S62: 0
A63: 41 | B63: 1 | C63: 1 | D63: 7 | E63: 7 | F63: 7 | G63: 6 | H63: 7 | I63: 6 | J63: 1 | K63: 1 | L63: 1 | M63: 7 | O63: 0.6357836 | P63: -0.452897025 | Q63: 0.2315628252 | R63: 1 | S63: 1
A64: 42 | B64: 0 | C64: 1 | D64: 5 | E64: 5 | F64: 5 | G64: 7 | H64: 7 | I64: 7 | J64: 5 | K64: 3 | L64: 4 | M64: 5 | O64: 0.1732704634 | P64: -0.190277679 | Q64: 0.14324822 | R64: 0 | S64: 1
A65: 43 | B65: 0 | C65: 1 | D65: 3 | E65: 4 | F65: 4 | G65: 4 | H65: 7 | I65: 6 | J65: 3 | K65: 3 | L65: 4 | M65: 2 | O65: 0.02914753795 | P65: -0.02958076657 | Q65: 0.02829803803 | R65: 0 | S65: 1
A66: 44 | B66: 0 | C66: 1 | D66: 7 | E66: 7 | F66: 7 | G66: 2 | H66: 5 | I66: 5 | J66: 4 | K66: 4 | L66: 4 | M66: 6 | O66: 0.1398909332 | P66: -0.1506960759 | Q66: 0.1203222745 | R66: 0 | S66: 1
A67: 45 | B67: 0 | C67: 1 | D67: 7 | E67: 5 | F67: 7 | G67: 7 | H67: 6 | I67: 7 | J67: 2 | K67: 1 | L67: 1 | M67: 7 | O67: 0.5302052518 | P67: -0.7554593856 | Q67: 0.2490878062 | R67: 1 | S67: 0
A68: 46 | B68: 0 | C68: 1 | D68: 6 | E68: 4 | F68: 6 | G68: 7 | H68: 7 | I68: 7 | J68: 1 | K68: 2 | L68: 1 | M68: 7 | O68: 0.3172986293 | P68: -0.3816977468 | Q68: 0.2166206889 | R68: 0 | S68: 1
A69: 47 | B69: 0 | C69: 1 | D69: 4 | E69: 5 | F69: 5 | G69: 4 | H69: 5 | I69: 4 | J69: 3 | K69: 3 | L69: 3 | M69: 4 | O69: 0.063711099 | P69: -0.06583119522 | Q69: 0.05965274973 | R69: 0 | S69: 1
A70: 48 | B70: 0 | C70: 1 | D70: 5 | E70: 5 | F70: 3 | G70: 6 | H70: 6 | I70: 6 | J70: 3 | K70: 2 | L70: 2 | M70: 6 | O70: 0.3213632133 | P70: -0.3876692183 | Q70: 0.2180895092 | R70: 0 | S70: 1
A71: 49 | B71: 0 | C71: 1 | D71: 6 | E71: 6 | F71: 6 | G71: 7 | H71: 7 | I71: 7 | J71: 5 | K71: 4 | L71: 3 | M71: 5 | O71: 0.1893103813 | P71: -0.2098700124 | Q71: 0.1534721754 | R71: 0 | S71: 1
A72: 50 | B72: 1 | C72: 1 | D72: 7 | E72: 7 | F72: 7 | G72: 4 | H72: 6 | I72: 7 | J72: 1 | K72: 1 | L72: 1 | M72: 7 | O72: 0.607057468 | P72: -0.499131817 | Q72: 0.2385390292 | R72: 1 | S72: 1
A73: 51 | B73: 0 | C73: 1 | D73: 5 | E73: 6 | F73: 5 | G73: 7 | H73: 7 | I73: 7 | J73: 2 | K73: 2 | L73: 2 | M73: 6 | O73: 0.411605784 | P73: -0.5303581203 | Q73: 0.2421874306 | R73: 0 | S73: 1
A74: 52 | B74: 0 | C74: 1 | D74: 7 | E74: 6 | F74: 6 | G74: 7 | H74: 7 | I74: 7 | J74: 1 | K74: 1 | L74: 1 | M74: 7 | O74: 0.6433306883 | P74: -1.030946224 | Q74: 0.2294566712 | R74: 1 | S74: 0
A75: 53 | B75: 0 | C75: 1 | D75: 4 | E75: 5 | F75: 5 | G75: 7 | H75: 7 | I75: 5 | J75: 5 | K75: 4 | L75: 5 | M75: 5 | O75: 0.07586387433 | P75: -0.07889589604 | Q75: 0.07010946466 | R75: 0 | S75: 1
A76: 54 | B76: 0 | C76: 1 | D76: 7 | E76: 7 | F76: 7 | G76: 7 | H76: 7 | I76: 7 | J76: 2 | K76: 3 | L76: 2 | M76: 7 | O76: 0.4904187552 | P76: -0.6741659791 | Q76: 0.249908559 | R76: 0 | S76: 1
A77: 55 | B77: 0 | C77: 1 | D77: 6 | E77: 7 | F77: 6 | G77: 5 | H77: 5 | I77: 4 | J77: 4 | K77: 4 | L77: 3 | M77: 6 | O77: 0.1891706954 | P77: -0.2096977223 | Q77: 0.1533860725 | R77: 0 | S77: 1
A78: 56 | B78: 0 | C78: 1 | D78: 4 | E78: 4 | F78: 5 | G78: 7 | H78: 7 | I78: 7 | J78: 2 | K78: 2 | L78: 1 | M78: 6 | O78: 0.2263616289 | P78: -0.2566507353 | Q78: 0.1751223923 | R78: 0 | S78: 1
A79: 57 | B79: 0 | C79: 1 | D79: 7 | E79: 7 | F79: 7 | G79: 6 | H79: 5 | I79: 4 | J79: 2 | K79: 3 | L79: 1 | M79: 2 | O79: 0.159331198 | P79: -0.1735575111 | Q79: 0.1339457041 | R79: 0 | S79: 1
A80: 58 | B80: 0 | C80: 1 | D80: 7 | E80: 7 | F80: 7 | G80: 5 | H80: 6 | I80: 4 | J80: 4 | K80: 2 | L80: 4 | M80: 5 | O80: 0.2747067605 | P80: -0.3211792376 | Q80: 0.1992434987 | R80: 0 | S80: 1
A81: 59 | B81: 1 | C81: 1 | D81: 7 | E81: 7 | F81: 7 | G81: 7 | H81: 7 | I81: 7 | J81: 1 | K81: 1 | L81: 1 | M81: 6 | O81: 0.647948806 | P81: -0.4339435888 | Q81: 0.228112001 | R81: 1 | S81: 1
A82: 60 | B82: 1 | C82: 1 | D82: 7 | E82: 6 | F82: 6 | G82: 6 | H82: 6 | I82: 7 | J82: 3 | K82: 1 | L82: 3 | M82: 4 | O82: 0.398157741 | P82: -0.9209070182 | Q82: 0.239628927 | R82: 0 | S82: 0
B83: 0 | C83: 1 | D83: 7 | E83: 7 | F83: 6 | G83: 7 | H83: 7 | I83: 7 | J83: 1 | K83: 1 | L83: 1 | M83: 7 | O83: 0.7270599265 | P83: -1.298503019 | Q83: 0.1984446365 | R83: 1 | S83: 0
B84: 1 | C84: 1 | D84: 6 | E84: 7 | F84: 7 | G84: 5 | H84: 5 | I84: 6 | J84: 1 | K84: 2 | L84: 2 | M84: 7 | O84: 0.4610680743 | P84: -0.7742095802 | Q84: 0.2484851755 | R84: 0 | S84: 0
B85: 1 | C85: 1 | D85: 7 | E85: 7 | F85: 7 | G85: 7 | H85: 7 | I85: 6 | J85: 1 | K85: 1 | L85: 1 | M85: 7 | O85: 0.6711204678 | P85: -0.3988066235 | Q85: 0.220718568 | R85: 1 | S85: 1
B86: 1 | C86: 1 | D86: 6 | E86: 6 | F86: 6 | G86: 5 | H86: 7 | I86: 6 | J86: 1 | K86: 1 | L86: 1 | M86: 7 | O86: 0.4914629201 | P86: -0.7103687845 | Q86: 0.249927583 | R86: 0 | S86: 0
B87: 1 | C87: 1 | D87: 7 | E87: 6 | F87: 7 | G87: 6 | H87: 7 | I87: 7 | J87: 1 | K87: 1 | L87: 1 | M87: 7 | O87: 0.5764864837 | P87: =B87*LN(O87)+(1-B87)*LN(1-O87) -> -0.550803385 | Q87: 0.244149968 | R87: =IF(O87>0.5,1,0) -> 1 | S87: =IF(B87=R87,1,0) -> 1
B88: 0 | C88: 1 | D88: 7 | E88: 7 | F88: 7 | G88: 7 | H88: 7 | I88: 7 | J88: 1 | K88: 2 | L88: 1 | M88: 7 | O88: =1/(1+EXP(-(H$3*C88+H$4*D88+H$5*E88+H$6*F88+H$7*G88+H$8*H88+H$9*I88+H$10*J88+H$11*K88+H$12*L88+H$13*M88))) -> 0.610333456 | P88: -0.942463921 | Q88: =O88*(1-O88)+0.000001*RAND() -> 0.2378266232 | R88: 1 | S88: 0
B89: 1 | C89: 1 | D89: 7 | E89: 7 | F89: 7 | G89: 7 | H89: 7 | I89: 7 | J89: 1 | K89: 1 | L89: 1 | M89: 7 | O89: 0.7014935909 | P89: -0.3545435158 | Q89: 0.2094011368 | R89: 1 | S89: 1
B90: 1 | C90: 1 | D90: 7 | E90: 7 | F90: 7 | G90: 4 | H90: 4 | I90: 7 | J90: 3 | K90: 3 | L90: 2 | M90: 6 | O90: 0.3527820471 | P90: -1.041904843 | Q90: 0.2283276259 | R90: 0 | S90: 0
B91: 0 | C91: 1 | D91: 1 | E91: 2 | F91: 1 | G91: 5 | H91: 5 | I91: 4 | J91: 6 | K91: 5 | L91: 4 | M91: 4 | O91: 0.009859468832 | P91: -0.009908395253 | Q91: 0.009762466936 | R91: 0 | S91: 1
B92: 1 | C92: 1 | D92: 1 | E92: 1 | F92: 1 | G92: 2 | H92: 1 | I92: 3 | J92: 3 | K92: 4 | L92: 4 | M92: 3 | O92: 0.005252300997 | P92: -5.249089013 | Q92: 0.005225009154 | R92: 0 | S92: 0
B93: 0 | C93: 1 | D93: 4 | E93: 6 | F93: 5 | G93: 6 | H93: 5 | I93: 5 | J93: 3 | K93: 5 | L93: 4 | M93: 2 | O93: 0.03830553873 | P93: -0.03905848659 | Q93: 0.03683860233 | R93: 0 | S93: 1
B94: 0 | C94: 1 | D94: 5 | E94: 5 | F94: 4 | G94: 7 | H94: 7 | I94: 7 | J94: 2 | K94: 3 | L94: 3 | M94: 6 | O94: 0.2485564659 | P94: -0.2857592102 | Q94: 0.1867770432 | R94: 0 | S94: 1
B95: 0 | C95: 1 | D95: 7 | E95: 7 | F95: 7 | G95: 4 | H95: 4 | I95: 5 | J95: 3 | K95: 2 | L95: 1 | M95: 7 | O95: 0.4599983089 | P95: -0.6161830077 | Q95: 0.2484008588 | R95: 0 | S95: 1
B96: 0 | C96: 1 | D96: 7 | E96: 7 | F96: 7 | G96: 7 | H96: 4 | I96: 7 | J96: 3 | K96: 3 | L96: 3 | M96: 7 | O96: 0.5068185045 | P96: -0.7068780276 | Q96: 0.249954052 | R96: 1 | S96: 0
B97: 1 | C97: 1 | D97: 7 | E97: 7 | F97: 7 | G97: 5 | H97: 4 | I97: 4 | J97: 1 | K97: 1 | L97: 1 | M97: 7 | O97: 0.5660073392 | P97: -0.569148234 | Q97: 0.2456431744 | R97: 1 | S97: 1
B98: 0 | C98: 1 | D98: 5 | E98: 5 | F98: 5 | G98: 7 | H98: 7 | I98: 6 | J98: 1 | K98: 1 | L98: 1 | M98: 7 | O98: 0.4608373563 | P98: -0.6177380028 | Q98: 0.2484670422 | R98: 0 | S98: 1
B99: 0 | C99: 1 | D99: 6 | E99: 6 | F99: 6 | G99: 5 | H99: 7 | I99: 6 | J99: 1 | K99: 1 | L99: 1 | M99: 7 | O99: 0.4914629201 | P99: -0.676217146 | Q99: 0.2499275045 | R99: 0 | S99: 1
B100: 0 | C100: 1 | D100: 6 | E100: 7 | F100: 7 | G100: 5 | H100: 6 | I100: 6 | J100: 3 | K100: 4 | L100: 3 | M100: 6 | O100: 0.2067252169 | P100: -0.2315856066 | Q100: 0.1639902634 | R100: 0 | S100: 1
B101: 0 | C101: 1 | D101: 7 | E101: 7 | F101: 7 | G101: 5 | H101: 5 | I101: 5 | J101: 1 | K101: 1 | L101: 1 | M101: 5 | O101: 0.4672945493 | P101: -0.6297866329 | Q101: 0.2489312446 | R101: 0 | S101: 1
B102: 0 | C102: 1 | D102: 7 | E102: 7 | F102: 7 | G102: 6 | H102: 7 | I102: 7 | J102: 1 | K102: 1 | L102: 1 | M102: 6 | O102: 0.6115632445 | P102: -0.9456249141 | Q102: 0.237554198 | R102: 1 | S102: 0
B103: 1 | C103: 1 | D103: 6 | E103: 7 | F103: 5 | G103: 7 | H103: 5 | I103: 6 | J103: 1 | K103: 1 | L103: 1 | M103: 7 | O103: 0.7091681803 | P103: -0.3436625729 | Q103: 0.206249565 | R103: 1 | S103: 1
B104: 0 | C104: 1 | D104: 4 | E104: 6 | F104: 5 | G104: 6 | H104: 4 | I104: 5 | J104: 1 | K104: 1 | L104: 1 | M104: 7 | O104: 0.4780199795 | P104: -0.6501259668 | Q104: 0.2495171317 | R104: 0 | S104: 1
B105: 0 | C105: 1 | D105: 6 | E105: 5 | F105: 6 | G105: 6 | H105: 6 | I105: 5 | J105: 3 | K105: 2 | L105: 3 | M105: 7 | O105: 0.2832342228 | P105: -0.3330061623 | Q105: 0.203013555 | R105: 0 | S105: 1
B106: 0 | C106: 1 | D106: 6 | E106: 6 | F106: 5 | G106: 7 | H106: 7 | I106: 7 | J106: 3 | K106: 2 | L106: 2 | M106: 4 | O106: 0.3366683115 | P106: -0.4104801296 | Q106: 0.2233232897 | R106: 0 | S106: 1
B107: 0 | C107: 1 | D107: 5 | E107: 6 | F107: 5 | G107: 5 | H107: 4 | I107: 5 | J107: 3 | K107: 3 | L107: 3 | M107: 5 | O107: 0.1770537022 | P107: -0.1948643322 | Q107: 0.1457061887 | R107: 0 | S107: 1
B108: 0 | C108: 1 | D108: 5 | E108: 4 | F108: 5 | G108: 7 | H108: 7 | I108: 7 | J108: 2 | K108: 2 | L108: 1 | M108: 6 | O108: 0.2576102464 | P108: -0.2978808994 | Q108: 0.1912477755 | R108: 0 | S108: 1
B109: 1 | C109: 1 | D109: 7 | E109: 7 | F109: 7 | G109: 7 | H109: 7 | I109: 7 | J109: 2 | K109: 1 | L109: 1 | M109: 7 | O109: 0.7009448019 | P109: -0.355326137 | Q109: 0.2096216168 | R109: 1 | S109: 1
B110: 1 | C110: 1 | D110: 6 | E110: 7 | F110: 6 | G110: 6 | H110: 7 | I110: 7 | J110: 1 | K110: 2 | L110: 1 | M110: 7 | O110: 0.5615264085 | P110: -0.5770964738 | Q110: 0.2462145601 | R110: 1 | S110: 1
B111: 1 | C111: 1 | D111: 7 | E111: 7 | F111: 7 | G111: 6 | H111: 6 | I111: 6 | J111: 1 | K111: 2 | L111: 2 | M111: 7 | O111: 0.530379193 | P111: -0.6341630698 | Q111: 0.2490780685 | R111: 1 | S111: 1
B112: 0 | C112: 1 | D112: 7 | E112: 7 | F112: 7 | G112: 7 | H112: 5 | I112: 6 | J112: 1 | K112: 1 | L112: 1 | M112: 7 | O112: 0.6923692182 | P112: -1.178854975 | Q112: 0.2129949438 | R112: 1 | S112: 0
B113: 1 | C113: 1 | D113: 7 | E113: 7 | F113: 7 | G113: 4 | H113: 7 | I113: 7 | J113: 1 | K113: 1 | L113: 2 | M113: 7 | O113: 0.5762165618 | P113: -0.5512717136 | Q113: 0.2441918596 | R113: 1 | S113: 1
B114: 0 | C114: 1 | D114: 7 | E114: 7 | F114: 7 | G114: 4 | H114: 3 | I114: 3 | J114: 1 | K114: 3 | L114: 1 | M114: 7 | O114: 0.3112756129 | P114: -0.3729141067 | Q114: 0.2143838866 | R114: 0 | S114: 1
B115: 0 | C115: 1 | D115: 5 | E115: 5 | F115: 4 | G115: 2 | H115: 6 | I115: 4 | J115: 1 | K115: 1 | L115: 1 | M115: 7 | O115: 0.2600484617 | P115: -0.3011705838 | Q115: 0.1924234521 | R115: 0 | S115: 1
B116: 0 | C116: 1 | D116: 7 | E116: 7 | F116: 5 | G116: 6 | H116: 7 | I116: 7 | J116: 3 | K116: 3 | L116: 2 | M116: 6 | O116: 0.4524419949 | P116: -0.6022868776 | Q116: 0.2477387662 | R116: 0 | S116: 1
B117: 0 | C117: 1 | D117: 6 | E117: 7 | F117: 7 | G117: 5 | H117: 5 | I117: 6 | J117: 2 | K117: 2 | L117: 2 | M117: 5 | O117: 0.3435681267 | P117: -0.4209363632 | Q117: 0.2255295428 | R117: 0 | S117: 1
B118: 0 | C118: 1 | D118: 7 | E118: 7 | F118: 7 | G118: 7 | H118: 6 | I118: 6 | J118: 5 | K118: 4 | L118: 5 | M118: 6 | O118: 0.2641292367 | P118: -0.306700769 | Q118: 0.1943649928 | R118: 0 | S118: 1
B119: 1 | C119: 1 | D119: 7 | E119: 7 | F119: 7 | G119: 7 | H119: 7 | I119: 7 | J119: 1 | K119: 1 | L119: 1 | M119: 7 | O119: 0.7014935909 | P119: -0.3545435158 | Q119: 0.2094003772 | R119: 1 | S119: 1
B120: 0 | C120: 1 | D120: 6 | E120: 5 | F120: 6 | G120: 7 | H120: 7 | I120: 7 | J120: 2 | K120: 2 | L120: 1 | M120: 7 | O120: 0.4063857853 | P120: -0.5215256409 | Q120: 0.2412368035 | R120: 0 | S120: 1
B121: 1 | C121: 1 | D121: 7 | E121: 7 | F121: 7 | G121: 7 | H121: 7 | I121: 7 | J121: 1 | K121: 1 | L121: 1 | M121: 7 | O121: 0.7014935909 | P121: -0.3545435158 | Q121: 0.2094009084 | R121: 1 | S121: 1
B122: 0 | C122: 1 | D122: 4 | E122: 5 | F122: 4 | G122: 4 | H122: 7 | I122: 7 | J122: 1 | K122: 2 | L122: 1 | M122: 5 | O122: 0.1940454853 | P122: -0.2157279715 | Q122: 0.1563927709 | R122: 0 | S122: 1
B123: 0 | C123: 1 | D123: 3 | E123: 4 | F123: 4 | G123: 7 | H123: 6 | I123: 7 | J123: 1 | K123: 1 | L123: 1 | M123: 7 | O123: 0.3606632488 | P123: -0.4473239662 | Q123: 0.2305857315 | R123: 0 | S123: 1
B124: 0 | C124: 1 | D124: 7 | E124: 7 | F124: 7 | G124: 7 | H124: 7 | I124: 5 | J124: 2 | K124: 1 | L124: 3 | M124: 5 | O124: 0.4808263395 | P124: -0.6555168457 | Q124: 0.2496325946 | R124: 0 | S124: 1
B125: 0 | C125: 1 | D125: 4 | E125: 4 | F125: 3 | G125: 7 | H125: 7 | I125: 7 | J125: 5 | K125: 4 | L125: 5 | M125: 6 | O125: 0.1078934602 | P125: -0.1141697143 | Q125: 0.09625296388 | R125: 0 | S125: 1
B126: 0 | C126: 1 | D126: 5 | E126: 5 | F126: 5 | G126: 7 | H126: 4 | I126: 7 | J126: 3 | K126: 4 | L126: 3 | M126: 5 | O126: 0.1496396244 | P126: -0.162095048 | Q126: 0.1272476636 | R126: 0 | S126: 1
B127: 0 | C127: 1 | D127: 7 | E127: 7 | F127: 7 | G127: 5 | H127: 5 | I127: 2 | J127: 3 | K127: 1 | L127: 2 | M127: 7 | O127: 0.4626484934 | P127: -0.6211028239 | Q127: 0.2486055875 | R127: 0 | S127: 1
B128: 0 | C128: 1 | D128: 7 | E128: 6 | F128: 7 | G128: 6 | H128: 6 | I128: 6 | J128: 1 | K128: 1 | L128: 1 | M128: 5 | O128: 0.432272263 | P128: -0.5661133115 | Q128: 0.2454138176 | R128: 0 | S128: 1
B129: 0 | C129: 1 | D129: 6 | E129: 5 | F129: 5 | G129: 5 | H129: 4 | I129: 4 | J129: 3 | K129: 3 | L129: 4 | M129: 6 | O129: 0.1504217968 | P129: -0.1630152842 | Q129: 0.1277952598 | R129: 0 | S129: 1
B130: 0 | C130: 1 | D130: 5 | E130: 6 | F130: 6 | G130: 6 | H130: 5 | I130: 4 | J130: 2 | K130: 2 | L130: 2 | M130: 2 | O130: 0.1254411025 | P130: -0.1340356368 | Q130: 0.109706346 | R130: 0 | S130: 1
B131: 1 | C131: 1 | D131: 5 | E131: 6 | F131: 5 | G131: 4 | H131: 7 | I131: 7 | J131: 1 | K131: 1 | L131: 1 | M131: 7 | O131: 0.4764316552 | P131: -0.741430997 | Q131: 0.2494448448 | R131: 0 | S131: 0
B132: 0 | C132: 1 | D132: 5 | E132: 5 | F132: 4 | G132: 7 | H132: 7 | I132: 6 | J132: 3 | K132: 5 | L132: 4 | M132: 6 | O132: 0.1052468547 | P132: -0.111207414 | Q132: 0.0941700557 | R132: 0 | S132: 1
B133: 1 | C133: 1 | D133: 5 | E133: 4 | F133: 5 | G133: 7 | H133: 7 | I133: 6 | J133: 2 | K133: 1 | L133: 2 | M133: 3 | O133: 0.1671784603 | P133: -1.788693413 | Q133: 0.1392298965 | R133: 0 | S133: 0
B134: 1 | C134: 1 | D134: 7 | E134: 7 | F134: 7 | G134: 7 | H134: 7 | I134: 7 | J134: 1 | K134: 1 | L134: 1 | M134: 7 | O134: 0.7014935909 | P134: -0.3545435158 | Q134: 0.2094011072 | R134: 1 | S134: 1
B135: 1 | C135: 1 | D135: 6 | E135: 7 | F135: 7 | G135: 6 | H135: 5 | I135: 6 | J135: 5 | K135: 4 | L135: 5 | M135: 5 | O135: 0.1755617423 | P135: -1.73976449 | Q135: 0.1447404749 | R135: 0 | S135: 0
B136: 1 | C136: 1 | D136: 7 | E136: 7 | F136: 7 | G136: 5 | H136: 5 | I136: 5 | J136: 1 | K136: 1 | L136: 1 | M136: 7 | O136: 0.5884984927 | P136: -0.5301809135 | Q136: 0.2421689004 | R136: 1 | S136: 1
B137: 1 | C137: 1 | D137: 7 | E137: 7 | F137: 7 | G137: 7 | H137: 7 | I137: 7 | J137: 1 | K137: 1 | L137: 1 | M137: 7 | O137: 0.7014935909 | P137: -0.3545435158 | Q137: 0.2094012913 | R137: 1 | S137: 1
B138: 0 | C138: 1 | D138: 4 | E138: 3 | F138: 3 | G138: 7 | H138: 7 | I138: 7 | J138: 2 | K138: 1 | L138: 3 | M138: 7 | O138: 0.2941008457 | P138: -0.3482828926 | Q138: 0.2076063905 | R138: 0 | S138: 1
B139: 0 | C139: 1 | D139: 7 | E139: 7 | F139: 7 | G139: 7 | H139: 6 | I139: 7 | J139: 1 | K139: 1 | L139: 1 | M139: 7 | O139: 0.7116479737 | P139: -1.243573232 | Q139: 0.2052056278 | R139: 1 | S139: 0
B140: 0 | C140: 1 | D140: 6 | E140: 7 | F140: 7 | G140: 5 | H140: 4 | I140: 5 | J140: 1 | K140: 1 | L140: 2 | M140: 6 | O140: 0.4782874539 | P140: -0.6506385207 | Q140: 0.2495294331 | R140: 0 | S140: 1
B141: 0 | C141: 1 | D141: 3 | E141: 4 | F141: 5 | G141: 6 | H141: 6 | I141: 7 | J141: 2 | K141: 3 | L141: 1 | M141: 4 | O141: 0.08308445871 | P141: -0.08673991425 | Q141: 0.07618175547 | R141: 0 | S141: 1
B142: 0 | C142: 1 | D142: 7 | E142: 7 | F142: 7 | G142: 5 | H142: 5 | I142: 5 | J142: 1 | K142: 1 | L142: 1 | M142: 6 | O142: 0.5283137799 | P142: -0.7514413025 | Q142: 0.2491989381 | R142: 1 | S142: 0
B143: 0 | C143: 1 | D143: 7 | E143: 7 | F143: 7 | G143: 7 | H143: 7 | I143: 7 | J143: 1 | K143: 1 | L143: 1 | M143: 7 | O143: 0.7014935909 | P143: -1.208963875 | Q143: 0.2094011205 | R143: 1 | S143: 0
B144: 0 | C144: 1 | D144: 7 | E144: 6 | F144: 7 | G144: 6 | H144: 6 | I144: 4 | J144: 1 | K144: 1 | L144: 1 | M144: 5 | O144: 0.3647253576 | P144: -0.4536978659 | Q144: 0.2317009137 | R144: 0 | S144: 1
B145: 0 | C145: 1 | D145: 6 | E145: 6 | F145: 6 | G145: 6 | H145: 6 | I145: 7 | J145: 2 | K145: 1 | L145: 1 | M145: 3 | O145: 0.3389401488 | P145: -0.4139108967 | Q145: 0.2240601966 | R145: 0 | S145: 1
B146: 1 | C146: 1 | D146: 7 | E146: 7 | F146: 7 | G146: 7 | H146: 7 | I146: 7 | J146: 1 | K146: 1 | L146: 1 | M146: 7 | O146: 0.7014935909 | P146: -0.3545435158 | Q146: 0.2094012267 | R146: 1 | S146: 1
B147: 1 | C147: 1 | D147: 7 | E147: 7 | F147: 7 | G147: 6 | H147: 5 | I147: 5 | J147: 4 | K147: 5 | L147: 5 | M147: 4 | O147: 0.1029560414 | P147: -2.273453165 | Q147: 0.09235654013 | R147: 0 | S147: 0
B148: 0 | C148: 1 | D148: 7 | E148: 7 | F148: 7 | G148: 4 | H148: 5 | I148: 4 | J148: 6 | K148: 7 | L148: 6 | M148: 6 | O148: 0.04631537733 | P148: -0.04742224639 | Q148: 0.04417069069 | R148: 0 | S148: 1
B149: 1 | C149: 1 | D149: 7 | E149: 7 | F149: 6 | G149: 7 | H149: 7 | I149: 7 | J149: 1 | K149: 2 | L149: 1 | M149: 6 | O149: 0.5816778912 | P149: -0.5418384361 | Q149: 0.2433292297 | R149: 1 | S149: 1
B150: 1 | C150: 1 | D150: 7 | E150: 7 | F150: 7 | G150: 7 | H150: 7 | I150: 7 | J150: 1 | K150: 1 | L150: 1 | M150: 7 | O150: 0.7014935909 | P150: -0.3545435158 | Q150: 0.2094009294 | R150: 1 | S150: 1
B151: 1 | C151: 1 | D151: 7 | E151: 7 | F151: 7 | G151: 7 | H151: 7 | I151: 7 | J151: 1 | K151: 1 | L151: 1 | M151: 7 | O151: 0.7014935909 | P151: =B151*LN(O151)+(1-B151)*LN(1-O151) -> -0.3545435158 | Q151: 0.2094008698 | R151: =IF(O151>0.5,1,0) -> 1 | S151: =IF(B151=R151,1,0) -> 1
B152: 1 | C152: 1 | D152: 7 | E152: 7 | F152: 7 | G152: 4 | H152: 5 | I152: 4 | J152: 1 | K152: 1 | L152: 1 | M152: 7 | O152: =1/(1+EXP(-(H$3*C152+H$4*D152+H$5*E152+H$6*F152+H$7*G152+H$8*H152+H$9*I152+H$10*J152+H$11*K152+H$12*L152+H$13*M152))) -> 0.5151082445 | P152: -0.6633782168 | Q152: =O152*(1-O152)+0.000001*RAND() -> 0.2497724505 | R152: 1 | S152: 1
B153: 1 | C153: 1 | D153: 7 | E153: 7 | F153: 7 | G153: 7 | H153: 7 | I153: 7 | J153: 1 | K153: 1 | L153: 1 | M153: 7 | O153: 0.7014935909 | P153: -0.3545435158 | Q153: 0.2094003624 | R153: 1 | S153: 1
B154: 1 | C154: 1 | D154: 5 | E154: 6 | F154: 7 | G154: 5 | H154: 6 | I154: 5 | J154: 2 | K154: 3 | L154: 4 | M154: 3 | O154: 0.07944281697 | P154: -2.532717799 | Q154: 0.07313228784 | R154: 0 | S154: 0
B155: 1 | C155: 1 | D155: 7 | E155: 7 | F155: 7 | G155: 7 | H155: 7 | I155: 7 | J155: 1 | K155: 1 | L155: 1 | M155: 7 | O155: 0.7014935909 | P155: -0.3545435158 | Q155: 0.2094004859 | R155: 1 | S155: 1
B156: 1 | C156: 1 | D156: 6 | E156: 7 | F156: 6 | G156: 7 | H156: 7 | I156: 7 | J156: 1 | K156: 1 | L156: 1 | M156: 7 | O156: 0.6919416798 | P156: -0.3682536047 | Q156: 0.2131584641 | R156: 1 | S156: 1
B157: 0 | C157: 1 | D157: 5 | E157: 4 | F157: 5 | G157: 4 | H157: 5 | I157: 5 | J157: 5 | K157: 4 | L157: 6 | M157: 3 | O157: 0.02515432115 | P157: -0.02547609862 | Q157: 0.02452242161 | R157: 0 | S157: 1
B158: 0 | C158: 1 | D158: 7 | E158: 7 | F158: 7 | G158: 6 | H158: 6 | I158: 7 | J158: 2 | K158: 1 | L158: 2 | M158: 7 | O158: 0.6605882458 | P158: -1.080541295 | Q158: 0.2242122539 | R158: 1 | S158: 0
B159: 1 | C159: 1 | D159: 7 | E159: 7 | F159: 6 | G159: 6 | H159: 5 | I159: 4 | J159: 1 | K159: 1 | L159: 1 | M159: 7 | O159: 0.6220084461 | P159: -0.4748016073 | Q159: 0.2351140414 | R159: 1 | S159: 1
B160: 1 | C160: 1 | D160: 6 | E160: 7 | F160: 7 | G160: 5 | H160: 5 | I160: 6 | J160: 1 | K160: 1 | L160: 1 | M160: 6 | O160: 0.5209865499 | P160: -0.6520310534 | Q160: 0.2495603338 | R160: 1 | S160: 1
B161: 1 | C161: 1 | D161: 7 | E161: 7 | F161: 6 | G161: 6 | H161: 6 | I161: 5 | J161: 1 | K161: 1 | L161: 1 | M161: 7 | O161: 0.6434257359 | P161: -0.4409486651 | Q161: 0.2294295689 | R161: 1 | S161: 1
B162: 1 | C162: 1 | D162: 7 | E162: 7 | F162: 6 | G162: 6 | H162: 6 | I162: 5 | J162: 2 | K162: 1 | L162: 2 | M162: 7 | O162: 0.6245548041 | P162: -0.4707161965 | Q162: 0.2344869303 | R162: 1 | S162: 1
B163: 0 | C163: 1 | D163: 6 | E163: 6 | F163: 5 | G163: 7 | H163: 7 | I163: 5 | J163: 1 | K163: 1 | L163: 2 | M163: 3 | O163: 0.3113225221 | P163: -0.3729822193 | Q163: 0.2144013072 | R163: 0 | S163: 1
B164: 1 | C164: 1 | D164: 7 | E164: 7 | F164: 7 | G164: 7 | H164: 7 | I164: 7 | J164: 1 | K164: 1 | L164: 2 | M164: 7 | O164: 0.6847531083 | P164: -0.3786969315 | Q164: 0.2158670329 | R164: 1 | S164: 1
B165: 0 | C165: 1 | D165: 5 | E165: 4 | F165: 4 | G165: 7 | H165: 7 | I165: 5 | J165: 3 | K165: 1 | L165: 1 | M165: 4 | O165: 0.2139798731 | P165: -0.2407728802 | Q165: 0.1681929561 | R165: 0 | S165: 1
B166: 0 | C166: 1 | D166: 4 | E166: 4 | F166: 5 | G166: 7 | H166: 6 | I166: 7 | J166: 2 | K166: 2 | L166: 2 | M166: 4 | O166: 0.1483655275 | P166: -0.1605978671 | Q166: 0.1263532825 | R166: 0 | S166: 1
B167: 1 | C167: 1 | D167: 6 | E167: 7 | F167: 7 | G167: 7 | H167: 7 | I167: 7 | J167: 1 | K167: 1 | L167: 1 | M167: 6 | O167: 0.60813774 | P167: -0.4973538767 | Q167: 0.238306582 | R167: 1 | S167: 1
B168: 0 | C168: 1 | D168: 6 | E168: 6 | F168: 6 | G168: 6 | H168: 7 | I168: 7 | J168: 1 | K168: 1 | L168: 1 | M168: 6 | O168: 0.5046932101 | P168: -0.7025779308 | Q168: 0.2499786707 | R168: 1 | S168: 0
B169: 0 | C169: 1 | D169: 7 | E169: 7 | F169: 7 | G169: 4 | H169: 3 | I169: 4 | J169: 1 | K169: 2 | L169: 2 | M169: 5 | O169: 0.3068724979 | P169: -0.3665413109 | Q169: 0.2127024632 | R169: 0 | S169: 1
B170: 1 | C170: 1 | D170: 6 | E170: 5 | F170: 5 | G170: 6 | H170: 7 | I170: 7 | J170: 2 | K170: 2 | L170: 2 | M170: 7 | O170: 0.380257447 | P170: -0.9669067637 | Q170: 0.2356617598 | R170: 0 | S170: 0
B171: 0 | C171: 1 | D171: 7 | E171: 7 | F171: 7 | G171: 6 | H171: 4 | I171: 5 | J171: 1 | K171: 1 | L171: 1 | M171: 6 | O171: 0.5789597324 | P171: -0.8650268024 | Q171: 0.2437659129 | R171: 1 | S171: 0
B172: 0 | C172: 1 | D172: 3 | E172: 2 | F172: 3 | G172: 5 | H172: 6 | I172: 6 | J172: 6 | K172: 4 | L172: 4 | M172: 6 | O172: 0.03257235557 | P172: -0.03311464299 | Q172: 0.03151140486 | R172: 0 | S172: 1
B173: 0 | C173: 1 | D173: 5 | E173: 4 | F173: 6 | G173: 4 | H173: 5 | I173: 5 | J173: 3 | K173: 3 | L173: 3 | M173: 7 | O173: 0.1035910979 | P173: -0.1093586062 | Q173: 0.09286093228 | R173: 0 | S173: 1
B174: 1 | C174: 1 | D174: 6 | E174: 7 | F174: 6 | G174: 5 | H174: 4 | I174: 7 | J174: 1 | K174: 1 | L174: 1 | M174: 7 | O174: 0.6556257888 | P174: -0.4221650968 | Q174: 0.2257814076 | R174: 1 | S174: 1
B175: 0 | C175: 1 | D175: 7 | E175: 7 | F175: 7 | G175: 7 | H175: 7 | I175: 7 | J175: 1 | K175: 1 | L175: 1 | M175: 7 | O175: 0.7014935909 | P175: -1.208963875 | Q175: 0.2094011589 | R175: 1 | S175: 0
B176: 1 | C176: 1 | D176: 7 | E176: 7 | F176: 7 | G176: 7 | H176: 7 | I176: 7 | J176: 1 | K176: 1 | L176: 1 | M176: 7 | O176: 0.7014935909 | P176: -0.3545435158 | Q176: 0.2094008696 | R176: 1 | S176: 1
B177: 0 | C177: 1 | D177: 7 | E177: 7 | F177: 7 | G177: 6 | H177: 5 | I177: 5 | J177: 2 | K177: 3 | L177: 3 | M177: 6 | O177: 0.3313812108 | P177: -0.402541203 | Q177: 0.2215682537 | R177: 0 | S177: 1
B178: 1 | C178: 1 | D178: 6 | E178: 6 | F178: 6 | G178: 7 | H178: 7 | I178: 7 | J178: 1 | K178: 1 | L178: 1 | M178: 7 | O178: 0.6033171078 | P178: -0.5053123368 | Q178: 0.2393258416 | R178: 1 | S178: 1
B179: 0 | C179: 1 | D179: 2 | E179: 1 | F179: 1 | G179: 5 | H179: 6 | I179: 7 | J179: 7 | K179: 6 | L179: 6 | M179: 4 | O179: 0.00656099429 | P179: -0.006582612222 | Q179: 0.006517950169 | R179: 0 | S179: 1
B180: 0 | C180: 1 | D180: 5 | E180: 6 | F180: 6 | G180: 4 | H180: 4 | I180: 4 | J180: 2 | K180: 2 | L180: 1 | M180: 7 | O180: 0.2881159582 | P180: -0.3398402435 | Q180: 0.2051060755 | R180: 0 | S180: 1
B181: 1 | C181: 1 | D181: 6 | E181: 6 | F181: 6 | G181: 7 | H181: 7 | I181: 7 | J181: 1 | K181: 1 | L181: 1 | M181: 7 | O181: 0.6033171078 | P181: -0.5053123368 | Q181: 0.2393258994 | R181: 1 | S181: 1
B182: 1 | C182: 1 | D182: 7 | E182: 7 | F182: 7 | G182: 6 | H182: 6 | I182: 6 | J182: 1 | K182: 1 | L182: 1 | M182: 7 | O182: 0.6470485963 | P182: -0.4353338771 | Q182: 0.2283773803 | R182: 1 | S182: 1
B183: 0 | C183: 1 | D183: 6 | E183: 6 | F183: 7 | G183: 6 | H183: 7 | I183: 4 | J183: 1 | K183: 1 | L183: 1 | M183: 7 | O183: 0.4290649146 | P183: -0.5604797616 | Q183: 0.2449687852 | R183: 0 | S183: 1
B184: 1 | C184: 1 | D184: 5 | E184: 4 | F184: 5 | G184: 5 | H184: 5 | I184: 4 | J184: 5 | K184: 4 | L184: 4 | M184: 4 | O184: 0.03767178725 | P184: -3.278843813 | Q184: 0.03625340246 | R184: 0 | S184: 0
B185: 0 | C185: 1 | D185: 7 | E185: 7 | F185: 7 | G185: 7 | H185: 7 | I185: 7 | J185: 1 | K185: 1 | L185: 1 | M185: 7 | O185: 0.7014935909 | P185: -1.208963875 | Q185: 0.2094005774 | R185: 1 | S185: 0
B186: 0 | C186: 1 | D186: 3 | E186: 3 | F186: 2 | G186: 2 | H186: 3 | I186: 2 | J186: 2 | K186: 2 | L186: 3 | M186: 5 | O186: 0.04286610281 | P186: -0.04381198384 | Q186: 0.04102911755 | R186: 0 | S186: 1
B187: 1 | C187: 1 | D187: 7 | E187: 7 | F187: 7 | G187: 6 | H187: 7 | I187: 6 | J187: 1 | K187: 1 | L187: 1 | M187: 7 | O187: 0.6357836 | P187: -0.452897025 | Q187: 0.2315631438 | R187: 1 | S187: 1
B188: 0 | C188: 1 | D188: 7 | E188: 7 | F188: 6 | G188: 6 | H188: 7 | I188: 5 | J188: 3 | K188: 4 | L188: 3 | M188: 5 | O188: 0.2096094379 | P188: -0.2352280732 | Q188: 0.1656733655 | R188: 0 | S188: 1
B189: 0 | C189: 1 | D189: 6 | E189: 6 | F189: 7 | G189: 7 | H189: 7 | I189: 7 | J189: 1 | K189: 1 | L189: 1 | M189: 6 | O189: 0.5123935071 | P189: -0.7182465654 | Q189: 0.2498471424 | R189: 1 | S189: 0
B190: 1 | C190: 1 | D190: 7 | E190: 7 | F190: 7 | G190: 7 | H190: 7 | I190: 6 | J190: 3 | K190: 3 | L190: 2 | M190: 6 | O190: 0.3949629937 | P190: -0.9289632054 | Q190: 0.2389675118 | R190: 0 | S190: 0
B191: 0 | C191: 1 | D191: 5 | E191: 5 | F191: 5 | G191: 7 | H191: 6 | I191: 7 | J191: 1 | K191: 1 | L191: 1 | M191: 7 | O191: 0.5082922611 | P191: -0.7098707656 | Q191: 0.2499319368 | R191: 1 | S191: 0
B192: 1 | C192: 1 | D192: 6 | E192: 6 | F192: 6 | G192: 7 | H192: 7 | I192: 7 | J192: 1 | K192: 1 | L192: 1 | M192: 7 | O192: 0.6033171078 | P192: -0.5053123368 | Q192: 0.2393261951 | R192: 1 | S192: 1
B193: 0 | C193: 1 | D193: 6 | E193: 6 | F193: 7 | G193: 7 | H193: 6 | I193: 7 | J193: 1 | K193: 2 | L193: 2 | M193: 7 | O193: 0.4646903816 | P193: -0.6249099735 | Q193: 0.2487536986 | R193: 0 | S193: 1
B194: 0 | C194: 1 | D194: 5 | E194: 5 | F194: 4 | G194: 6 | H194: 6 | I194: 7 | J194: 4 | K194: 3 | L194: 4 | M194: 5 | O194: 0.1762687796 | P194: -0.1939109911 | Q194: 0.1451990491 | R194: 0 | S194: 1
B195: 0 | C195: 1 | D195: 4 | E195: 5 | F195: 6 | G195: 6 | H195: 7 | I195: 7 | J195: 3 | K195: 3 | L195: 3 | M195: 6 | O195: 0.1562618413 | P195: -0.169913071 | Q195: 0.1318440986 | R195: 0 | S195: 1
B196: 0 | C196: 1 | D196: 5 | E196: 4 | F196: 4 | G196: 7 | H196: 7 | I196: 6 | J196: 2 | K196: 2 | L196: 2 | M196: 4 | O196: 0.1622281379 | P196: -0.1770094565 | Q196: 0.1359108517 | R196: 0 | S196: 1
B197: 0 | C197: 1 | D197: 7 | E197: 6 | F197: 6 | G197: 3 | H197: 5 | I197: 4 | J197: 4 | K197: 2 | L197: 3 | M197: 7 | O197: 0.2826677602 | P197: -0.3322161708 | Q197: 0.202766803 | R197: 0 | S197: 1
B198: 1 | C198: 1 | D198: 7 | E198: 7 | F198: 7 | G198: 4 | H198: 4 | I198: 5 | J198: 1 | K198: 1 | L198: 1 | M198: 7 | O198: 0.5623230851 | P198: -0.5756787098 | Q198: 0.246116144 | R198: 1 | S198: 1
B199: 0 | C199: 1 | D199: 6 | E199: 6 | F199: 6 | G199: 4 | H199: 6 | I199: 5 | J199: 5 | K199: 4 | L199: 4 | M199: 4 | O199: 0.07731588646 | P199: -0.0804683419 | Q199: 0.07133884949 | R199: 0 | S199: 1
B200: 1 | C200: 1 | D200: 7 | E200: 7 | F200: 7 | G200: 6 | H200: 6 | I200: 5 | J200: 1 | K200: 1 | L200: 1 | M200: 7 | O200: 0.6141825335 | P200: -0.4874631092 | Q200: 0.2369626818 | R200: 1 | S200: 1
B201: 1 | C201: 1 | D201: 7 | E201: 7 | F201: 7 | G201: 5 | H201: 6 | I201: 5 | J201: 1 | K201: 1 | L201: 1 | M201: 7 | O201: 0.5765876206 | P201: -0.5506279636 | Q201: 0.2441347723 | R201: 1 | S201: 1
B202: 1 | C202: 1 | D202: 7 | E202: 7 | F202: 7 | G202: 7 | H202: 7 | I202: 6 | J202: 1 | K202: 1 | L202: 1 | M202: 7 | O202: 0.6711204678 | P202: -0.3988066235 | Q202: 0.2207178945 | R202: 1 | S202: 1
B203: 1 | C203: 1 | D203: 6 | E203: 6 | F203: 6 | G203: 6 | H203: 6 | I203: 7 | J203: 1 | K203: 1 | L203: 1 | M203: 7 | O203: 0.5774074336 | P203: -0.5492071375 | Q203: 0.2440083662 | R203: 1 | S203: 1
... 1319 more rows

Sheet ST_BestSub5
A1: Logistic Regression Significance Testing for the 5-Predictor Model
A2: Y = 1 if recommended the resataurant, else 0 | F2: b-hat | G2: se(b-hat) | H2: Wald | I2: z | J2: p-value | K2: exp(b-hat) | N2: Covariance Matrix
A3: Intercept Term | F3: -5.328721934 | G3: =SQRT(INDEX(N3:S8,,ROWS($1:1))) -> 0.7238586986 | H3: =(F3/G3)^2 -> 54.19241701 | I3: =F3/G3 -> -7.361549906 | J3: =2*(1-NORMDIST(ABS(I3),0,1,1)) -> 1.818545314e-13 | N3: =MINVERSE(MMULT(MMULT(TRANSPOSE(C17:H1016),IF(L17:L1016=TRANSPOSE(L17:L1016),L17:L1016,0)),C17:H1016)) -> 0.5239714155 | O3: -0.02360129548 | P3: -0.01354586281 | Q3: -0.01314039802 | R3: -0.02320423927 | S3: -0.02710395555
A4: X2 = the entrées are delicious | F4: 0.4260944538 | G4: =SQRT(INDEX(N4:S9,,ROWS($1:2))) -> 0.07538889719 | H4: =(F4/G4)^2 -> 31.94456524 | I4: =F4/G4 -> 5.651952339 | J4: =2*(1-NORMDIST(ABS(I4),0,1,1)) -> 1.586355824e-08 | K4: =EXP(F4) -> 1.531265402 | N4: -0.02360129548 | O4: 0.005683485819 | P4: -0.0001373873821 | Q4: 0.0001469542061 | R4: 5.478381374e-05 | S4: -0.001954912551
A5: X4 = parking at the restaurant is ample | F5: 0.137643581 | G5: =SQRT(INDEX(N5:S10,,ROWS($1:3))) -> 0.0734827997 | H5: 3.508653946 | I5: 1.87314013 | J5: 0.06104903714 | K5: =EXP(F5) -> 1.147566463 | N5: -0.01354586281 | O5: -0.0001373873821 | P5: 0.005399721852 | Q5: -0.003111600638 | R5: -1.769044008e-05 | S5: 9.615239168e-05
A6: X6 = the noise level in the restaurant is not distracting to me | F6: 0.1286978263 | G6: =SQRT(INDEX(N6:S11,,ROWS($1:4))) -> 0.07206567832 | H6: 3.189227247 | I6: 1.785840767 | J6: 0.0741250438 | K6: =EXP(F6) -> 1.137346396 | N6: -0.01314039802 | O6: 0.0001469542061 | P6: -0.003111600638 | Q6: 0.005193461992 | R6: 0.0002002383597 | S6: -0.0001122422692
A7: X8 = the wait for food service is excessive | F7: -0.4623536833 | G7: =SQRT(INDEX(N7:S12,,ROWS($1:5))) -> 0.07689570298 | H7: 36.15301324 | I7: -6.012737583 | J7: 1.824161933e-09 | K7: =EXP(F7) -> 0.629799551 | N7: -0.02320423927 | O7: 5.478381374e-05 | P7: -1.769044008e-05 | Q7: 0.0002002383597 | R7: 0.005912949137 | S7: 0.001874305923
A8: X10 = restaurant service personnel are courteous and friendly | F8: 0.2565979833 | G8: =SQRT(INDEX(N8:S13,,ROWS($1:6))) -> 0.07611986005 | H8: 11.36345811 | I8: 3.370972873 | J8: 0.0007490323313 | K8: =EXP(F8) -> 1.292525406 | N8: -0.02710395555 | O8: -0.001954912551 | P8: 9.615239168e-05 | Q8: -0.0001122422692 | R8: 0.001874305923 | S8: 0.005794233094
A10: Deviance (-2LL) | E10: =-2*SUM(K17:K1016) -> 1111.064568
A11: Akaike's Information Criterion (AIC) = | E11: =E10+2*6 -> 1123.064568
A12: Bayesian Information Criterion (BIC) = | E12: =E10+6*LOG(1000) -> 1129.064568
A13: % Correctly Classified (Training Sample) = | E13: =SUM(N17:N1016)/1000 -> 0.782
A14: % Correctly Classified (Holdout Sample) = | E14: =SUM(N1017:N1516)/500 -> 0.754
J15: Prob
A16: Customer | B16: Y | C16: X0 | D16: X2 | E16: X4 | F16: X6 | G16: X8 | H16: X10 | J16: Y = 1 | K16: LL | L16: V | M16: PRED | N16: Correct?
A17: 1 | B17: 0 | C17: 1 | D17: 7 | E17: 6 | F17: 6 | G17: 4 | H17: 5 | J17: =1/(1+EXP(-(F$3*C17+F$4*D17+F$5*E17+F$6*F17+F$7*G17+F$8*H17))) -> 0.2117452989 | K17: =B17*LN(J17)+(1-B17)*LN(1-J17) -> -0.2379340166 | L17: =J17*(1-J17)+0.000001*RAND() -> 0.1669094594 | M17: =IF(J17>0.5,1,0) -> 0 | N17: =IF(B17=M17,1,0) -> 1
A18: 2 | B18: 0 | C18: 1 | D18: 7 | E18: 7 | F18: 7 | G18: 3 | H18: 6 | J18: =1/(1+EXP(-(F$3*C18+F$4*D18+F$5*E18+F$6*F18+F$7*G18+F$8*H18))) -> 0.4184489019 | K18: -0.542056438 | L18: =J18*(1-J18)+0.000001*RAND() -> 0.2433502014 | M18: =IF(J18>0.5,1,0) -> 0 | N18: 1
A19: 3 | B19: 0 | C19: 1 | D19: 7 | E19: 5 | F19: 7 | G19: 3 | H19: 7 | J19: 0.4139079543 | K19: -0.5342784272 | L19: 0.242588167 | M19: 0 | N19: 1
A20: 4 | B20: 1 | C20: 1 | D20: 6 | E20: 4 | F20: 6 | G20: 3 | H20: 4 | J20: 0.1406305062 | K20: -1.961619352 | L20: 0.1208542107 | M20: 0 | N20: 0
A21: 5 | B21: 1 | C21: 1 | D21: 7 | E21: 7 | F21: 7 | G21: 5 | H21: 6 | J21: 0.2220341511 | K21: -1.504924075 | L21: 0.1727356145 | M21: 0 | N21: 0
A22: 6 | B22: 1 | C22: 1 | D22: 7 | E22: 6 | F22: 5 | G22: 1 | H22: 7 | J22: 0.612331227 | K22: -0.4904819222 | L22: 0.2373818088 | M22: 1 | N22: 1
A23: 7 | B23: 1 | C23: 1 | D23: 5 | E23: 7 | F23: 7 | G23: 3 | H23: 2 | J23: 0.09905893244 | K23: -2.312040329 | L23: 0.08924639381 | M23: 0 | N23: 0
A24: 8 | B24: 0 | C24: 1 | D24: 7 | E24: 6 | F24: 7 | G24: 1 | H24: 7 | J24: 0.6713986395 | K24: -1.112909933 | L24: 0.2206226909 | M24: 1 | N24: 0
A25: 9 | B25: 1 | C25: 1 | D25: 7 | E25: 7 | F25: 7 | G25: 1 | H25: 7 | J25: 0.7010203264 | K25: -0.3552183961 | L25: 0.2095913542 | M25: 1 | N25: 1
A26: 10 | B26: 0 | C26: 1 | D26: 7 | E26: 4 | F26: 2 | G26: 1 | H26: 7 | J26: 0.4491121585 | K26: -0.596224045 | L26: 0.247410778 | M26: 0 | N26: 1
A27: 11 | B27: 0 | C27: 1 | D27: 6 | E27: 7 | F27: 7 | G27: 3 | H27: 4 | J27: 0.2195253616 | K27: -0.2478530336 | L27: 0.1713345374 | M27: 0 | N27: 1
A28: 12 | B28: 1 | C28: 1 | D28: 7 | E28: 3 | F28: 3 | G28: 1 | H28: 7 | J28: 0.4468999074 | K28: -0.8054206303 | L28: 0.2471805225 | M28: 0 | N28: 0
A29: 13 | B29: 1 | C29: 1 | D29: 7 | E29: 7 | F29: 4 | G29: 4 | H29: 5 | J29: 0.1924467971 | K29: -1.647935542 | L29: 0.1554118713 | M29: 0 | N29: 0
A30: 14 | B30: 0 | C30: 1 | D30: 7 | E30: 6 | F30: 6 | G30: 2 | H30: 4 | J30: 0.3438175476 | K30: -0.4213164 | L30: 0.2256071269 | M30: 0 | N30: 1
A31: 15 | B31: 1 | C31: 1 | D31: 7 | E31: 4 | F31: 4 | G31: 1 | H31: 6 | J31: 0.4493095182 | K31: -0.8000432786 | L31: 0.2474310821 | M31: 0 | N31: 0
A32: 16 | B32: 1 | C32: 1 | D32: 7 | E32: 5 | F32: 6 | G32: 1 | H32: 7 | J32: 0.6102055467 | K32: -0.4939594167 | L32: 0.2378556203 | M32: 1 | N32: 1
A33: 17 | B33: 1 | C33: 1 | D33: 6 | E33: 7 | F33: 7 | G33: 1 | H33: 7 | J33: 0.6049340759 | K33: -0.5026357923 | L33: 0.2389894086 | M33: 1 | N33: 1
A34: 18 | B34: 1 | C34: 1 | D34: 2 | E34: 7 | F34: 3 | G34: 4 | H34: 5 | J34: 0.02428387124 | K34: -3.717942884 | L34: 0.02369443787 | M34: 0 | N34: 0
A35: 19 | B35: 1 | C35: 1 | D35: 3 | E35: 7 | F35: 6 | G35: 4 | H35: 5 | J35: 0.05309221703 | K35: -2.935724933 | L35: 0.05027420257 | M35: 0 | N35: 0
A36: 20 | B36: 0 | C36: 1 | D36: 7 | E36: 5 | F36: 4 | G36: 3 | H36: 4 | J36: 0.1818712555 | K36: -0.2007355654 | L36: 0.1487944177 | M36: 0 | N36: 1
A37: 21 | B37: 0 | C37: 1 | D37: 7 | E37: 7 | F37: 6 | G37: 6 | H37: 5 | J37: 0.1089510257 | K37: -0.1153558874 | L37: 0.09708101661 | M37: 0 | N37: 1
A38: 22 | B38: 0 | C38: 1 | D38: 7 | E38: 7 | F38: 7 | G38: 2 | H38: 5 | J38: 0.4691919878 | K38: -0.633354882 | L38: 0.2490514399 | M38: 0 | N38: 1
A39: 23 | B39: 0 | C39: 1 | D39: 7 | E39: 6 | F39: 6 | G39: 2 | H39: 7 | J39: 0.5308273998 | K39: -0.7567845607 | L39: 0.2490505361 | M39: 1 | N39: 0
A40: 24 | B40: 1 | C40: 1 | D40: 7 | E40: 5 | F40: 5 | G40: 1 | H40: 7 | J40: 0.5791971481 | K40: -0.5461123617 | L40: 0.2437280873 | M40: 1 | N40: 1
A41: 25 | B41: 1 | C41: 1 | D41: 7 | E41: 7 | F41: 7 | G41: 1 | H41: 7 | J41: 0.7010203264 | K41: -0.3552183961 | L41: 0.20959156 | M41: 1 | N41: 1
A42: 26 | B42: 0 | C42: 1 | D42: 6 | E42: 6 | F42: 7 | G42: 1 | H42: 6 | J42: 0.5079556473 | K42: -0.7091864188 | L42: 0.2499375567 | M42: 1 | N42: 0
A43: 27 | B43: 1 | C43: 1 | D43: 7 | E43: 7 | F43: 7 | G43: 1 | H43: 7 | J43: 0.7010203264 | K43: -0.3552183961 | L43: 0.2095908299 | M43: 1 | N43: 1
A44: 28 | B44: 1 | C44: 1 | D44: 7 | E44: 7 | F44: 5 | G44: 1 | H44: 7 | J44: 0.6444578563 | K44: -0.4393458485 | L44: 0.229132615 | M44: 1 | N44: 1
A45: 29 | B45: 0 | C45: 1 | D45: 2 | E45: 7 | F45: 7 | G45: 1 | H45: 3 | J45: 0.09073421636 | K45: -0.0951178363 | L45: 0.08250205202 | M45: 0 | N45: 1
A46: 30 | B46: 1 | C46: 1 | D46: 6 | E46: 7 | F46: 7 | G46: 1 | H46: 7 | J46: 0.6049340759 | K46: -0.5026357923 | L46: 0.2389890694 | M46: 1 | N46: 1
A47: 31 | B47: 1 | C47: 1 | D47: 6 | E47: 7 | F47: 7 | G47: 4 | H47: 4 | J47: 0.1504867932 | K47: -1.893879952 | L47: 0.127841077 | M47: 0 | N47: 0
A48: 32 | B48: 0 | C48: 1 | D48: 5 | E48: 7 | F48: 7 | G48: 1 | H48: 7 | J48: 0.4999930964 | K48: -0.6931333734 | L48: 0.250000275 | M48: 0 | N48: 1
A49: 33 | B49: 0 | C49: 1 | D49: 7 | E49: 7 | F49: 7 | G49: 5 | H49: 7 | J49: 0.2694817704 | K49: -0.3140010932 | L49: 0.1968621386 | M49: 0 | N49: 1
A50: 34 | B50: 1 | C50: 1 | D50: 5 | E50: 5 | F50: 5 | G50: 4 | H50: 6 | J50: 0.1018926806 | K50: -2.283835171 | L50: 0.09151097513 | M50: 0 | N50: 0
A51: 35 | B51: 0 | C51: 1 | D51: 7 | E51: 4 | F51: 3 | G51: 1 | H51: 7 | J51: 0.4811187938 | K51: -0.6560803119 | L51: 0.2496440104 | M51: 0 | N51: 1
A52: 36 | B52: 0 | C52: 1 | D52: 5 | E52: 7 | F52: 6 | G52: 1 | H52: 5 | J52: 0.3448123319 | K52: -0.4228335682 | L52: 0.2259175779 | M52: 0 | N52: 1
A53: 37 | B53: 0 | C53: 1 | D53: 7 | E53: 3 | F53: 3 | G53: 4 | H53: 5 | J53: 0.1077953173 | K53: -0.1140597078 | L53: 0.09617562506 | M53: 0 | N53: 1
A54: 38 | B54: 1 | C54: 1 | D54: 7 | E54: 4 | F54: 3 | G54: 1 | H54: 7 | J54: 0.4811187938 | K54: -0.7316410667 | L54: 0.2496440363 | M54: 0 | N54: 0
A55: 39 | B55: 0 | C55: 1 | D55: 6 | E55: 6 | F55: 5 | G55: 3 | H55: 6 | J55: 0.2404383556 | K55: -0.2750137958 | L55: 0.1826279018 | M55: 0 | N55: 1
A56: 40 | B56: 1 | C56: 1 | D56: 7 | E56: 4 | F56: 2 | G56: 1 | H56: 7 | J56: 0.4491121585 | K56: -0.8004826262 | L56: 0.2474112182 | M56: 0 | N56: 0
A57: 41 | B57: 1 | C57: 1 | D57: 7 | E57: 6 | F57: 6 | G57: 1 | H57: 7 | J57: 0.6424054597 | K57: -0.4425356175 | L57: 0.2297215059 | M57: 1 | N57: 1
A58: 42 | B58: 0 | C58: 1 | D58: 5 | E58: 7 | F58: 7 | G58: 3 | H58: 5 | J58: 0.1918659577 | K58: -0.2130273403 | L58: 0.1550540787 | M58: 0 | N58: 1
A59: 43 | B59: 0 | C59: 1 | D59: 4 | E59: 4 | F59: 6 | G59: 3 | H59: 2 | J59: 0.04010018698 | K59: -0.0409263614 | L59: 0.03849307656 | M59: 0 | N59: 1
A60: 44 | B60: 0 | C60: 1 | D60: 7 | E60: 2 | F60: 5 | G60: 4 | H60: 6 | J60: 0.1496802253 | K60: -0.1621427947 | L60: 0.1272763663 | M60: 0 | N60: 1
A61: 45 | B61: 0 | C61: 1 | D61: 5 | E61: 7 | F61: 7 | G61: 1 | H61: 7 | J61: 0.4999930964 | K61: -0.6931333734 | L61: 0.2500005155 | M61: 0 | N61: 1
A62: 46 | B62: 0 | C62: 1 | D62: 4 | E62: 7 | F62: 7 | G62: 2 | H62: 7 | J62: 0.2914244789 | K62: -0.3444986326 | L62: 0.2064968621 | M62: 0 | N62: 1
A63: 47 | B63: 0 | C63: 1 | D63: 5 | E63: 4 | F63: 4 | G63: 3 | H63: 4 | J63: 0.07631136559 | K63: -0.07938023988 | L63: 0.07048816044 | M63: 0 | N63: 1
A64: 48 | B64: 0 | C64: 1 | D64: 5 | E64: 6 | F64: 6 | G64: 2 | H64: 6 | J64: 0.2718373195 | K64: -0.3172307935 | L64: 0.1979424855 | M64: 0 | N64: 1
A65: 49 | B65: 0 | C65: 1 | D65: 6 | E65: 7 | F65: 7 | G65: 4 | H65: 5 | J65: 0.186306563 | K65: -0.2061715969 | L65: 0.1515969954 | M65: 0 | N65: 1
A66: 50 | B66: 1 | C66: 1 | D66: 7 | E66: 4 | F66: 7 | G66: 1 | H66: 7 | J66: 0.608075671 | K66: -0.4974559459 | L66: 0.2383197505 | M66: 1 | N66: 1
A67: 51 | B67: 0 | C67: 1 | D67: 6 | E67: 7 | F67: 7 | G67: 2 | H67: 6 | J67: 0.4272977607 | K67: -0.5573893496 | L67: 0.2447146891 | M67: 0 | N67: 1
A68: 52 | B68: 0 | C68: 1 | D68: 6 | E68: 7 | F68: 7 | G68: 1 | H68: 7 | J68: 0.6049340759 | K68: -0.9287026316 | L68: 0.2389892755 | M68: 1 | N68: 0
A69: 53 | B69: 0 | C69: 1 | D69: 5 | E69: 7 | F69: 5 | G69: 4 | H69: 5 | J69: 0.1036157075 | K69: -0.1093860601 | L69: 0.09287959398 | M69: 0 | N69: 1
A70: 54 | B70: 0 | C70: 1 | D70: 7 | E70: 7 | F70: 7 | G70: 3 | H70: 7 | J70: 0.4818714317 | K70: -0.6575318662 | L70: 0.2496721704 | M70: 0 | N70: 1
A71: 55 | B71: 0 | C71: 1 | D71: 7 | E71: 5 | F71: 4 | G71: 4 | H71: 6 | J71: 0.1895589757 | K71: -0.210176705 | L71: 0.1536269526 | M71: 0 | N71: 1
A72: 56 | B72: 0 | C72: 1 | D72: 4 | E72: 7 | F72: 7 | G72: 2 | H72: 6 | J72: 0.2413900355 | K72: -0.2762675144 | L72: 0.1831212321 | M72: 0 | N72: 1
A73: 57 | B73: 0 | C73: 1 | D73: 7 | E73: 6 | F73: 4 | G73: 3 | H73: 2 | J73: 0.1324723949 | K73: -0.1421079462 | L73: 0.1149243866 | M73: 0 | N73: 1
A74: 58 | B74: 0 | C74: 1 | D74: 7 | E74: 5 | F74: 4 | G74: 2 | H74: 5 | J74: 0.3132929692 | K74: -0.3758475249 | L74: 0.2151407672 | M74: 0 | N74: 1
A75: 59 | B75: 1 | C75: 1 | D75: 7 | E75: 7 | F75: 7 | G75: 1 | H75: 6 | J75: 0.6446406067 | K75: -0.4390623163 | L75: 0.2290795617 | M75: 1 | N75: 1
A76: 60 | B76: 1 | C76: 1 | D76: 6 | E76: 6 | F76: 7 | G76: 1 | H76: 4 | J76: 0.3819285087 | K76: -0.962521838 | L76: 0.2360592727 | M76: 0 | N76: 0
B77: 0 | C77: 1 | D77: 7 | E77: 7 | F77: 7 | G77: 1 | H77: 7 | J77: 0.7010203264 | K77: -1.207379689 | L77: 0.2095914227 | M77: 1 | N77: 0
B78: 1 | C78: 1 | D78: 7 | E78: 5 | F78: 6 | G78: 2 | H78: 7 | J78: 0.4964557148 | K78: -0.7002609943 | L78: 0.2499880243 | M78: 0 | N78: 0
B79: 1 | C79: 1 | D79: 7 | E79: 7 | F79: 6 | G79: 1 | H79: 7 | J79: 0.6733692397 | K79: -0.3954614525 | L79: 0.2199434445 | M79: 1 | N79: 1
B80: 1 | C80: 1 | D80: 6 | E80: 5 | F80: 6 | G80: 1 | H80: 7 | J80: 0.5055202385 | K80: -0.6821672048 | L80: 0.249970204 | M80: 1 | N80: 1
B81: 1 | C81: 1 | D81: 6 | E81: 6 | F81: 7 | G81: 1 | H81: 7 | J81: 0.5716100767 | K81: =B81*LN(J81)+(1-B81)*LN(1-J81) -> -0.5592982041 | L81: 0.2448725157 | M81: 1 | N81: =IF(B81=M81,1,0) -> 1
B82: 0 | C82: 1 | D82: 7 | E82: 7 | F82: 7 | G82: 2 | H82: 7 | J82: =1/(1+EXP(-(F$3*C82+F$4*D82+F$5*E82+F$6*F82+F$7*G82+F$8*H82))) -> 0.5962363844 | K82: -0.9069256823 | L82: =J82*(1-J82)+0.000001*RAND() -> 0.2407387559 | M82: =IF(J82>0.5,1,0) -> 1 | N82: 0
B83: 1 | C83: 1 | D83: 7 | E83: 7 | F83: 7 | G83: 1 | H83: 7 | J83: 0.7010203264 | K83: -0.3552183961 | L83: 0.2095910767 | M83: 1 | N83: 1
B84: 1 | C84: 1 | D84: 7 | E84: 4 | F84: 7 | G84: 3 | H84: 6 | J84: 0.3225506089 | K84: -1.131495228 | L84: 0.2185123355 | M84: 0 | N84: 0
B85: 0 | C85: 1 | D85: 2 | E85: 5 | F85: 4 | G85: 5 | H85: 4 | J85: 0.01036501172 | K85: -0.01041910255 | L85: 0.01025808069 | M85: 0 | N85: 1
B86: 1 | C86: 1 | D86: 1 | E86: 2 | F86: 3 | G86: 4 | H86: 3 | J86: 0.004864729223 | K86: -5.325744223 | L86: 0.0048413625 | M86: 0 | N86: 0
B87: 0 | C87: 1 | D87: 6 | E87: 6 | F87: 5 | G87: 5 | H87: 2 | J87: 0.04305048896 | K87: -0.04400464645 | L87: 0.04119744877 | M87: 0 | N87: 1
B88: 0 | C88: 1 | D88: 5 | E88: 7 | F88: 7 | G88: 3 | H88: 6 | J88: 0.2348126104 | K88: -0.2676345214 | L88: 0.1796764966 | M88: 0 | N88: 1
B89: 0 | C89: 1 | D89: 7 | E89: 4 | F89: 5 | G89: 2 | H89: 7 | J89: 0.4303265935 | K89: -0.5626920533 | L89: 0.2451463446 | M89: 0 | N89: 1
B90: 0 | C90: 1 | D90: 7 | E90: 7 | F90: 7 | G90: 3 | H90: 7 | J90: 0.4818714317 | K90: -0.6575318662 | L90: 0.249671719 | M90: 0 | N90: 1
B91: 1 | C91: 1 | D91: 7 | E91: 5 | F91: 4 | G91: 1 | H91: 7 | J91: 0.5475510233 | K91: -0.6022996284 | L91: 0.2477389799 | M91: 1 | N91: 1
B92: 0 | C92: 1 | D92: 5 | E92: 7 | F92: 6 | G92: 1 | H92: 7 | J92: 0.467863004 | K92: -0.6308543116 | L92: 0.2489675949 | M92: 0 | N92: 1
B93: 0 | C93: 1 | D93: 6 | E93: 5 | F93: 6 | G93: 1 | H93: 7 | J93: 0.5055202385 | K93: -0.7042490559 | L93: 0.2499697992 | M93: 1 | N93: 0
B94: 0 | C94: 1 | D94: 7 | E94: 5 | F94: 6 | G94: 4 | H94: 6 | J94: 0.2322797886 | K94: -0.2643299203 | L94: 0.1783259301 | M94: 0 | N94: 1
B95: 0 | C95: 1 | D95: 7 | E95: 5 | F95: 5 | G95: 1 | H95: 5 | J95: 0.4517215104 | K95: -0.6009719285 | L95: 0.2476698498 | M95: 0 | N95: 1
B96: 0 | C96: 1 | D96: 7 | E96: 6 | F96: 7 | G96: 1 | H96: 6 | J96: 0.6125205621 | K96: -0.9480924952 | L96: 0.2373395744 | M96: 1 | N96: 0
B97: 1 | C97: 1 | D97: 7 | E97: 7 | F97: 6 | G97: 1 | H97: 7 | J97: 0.6733692397 | K97: -0.3954614525 | L97: 0.2199437495 | M97: 1 | N97: 1
B98: 0 | C98: 1 | D98: 6 | E98: 6 | F98: 5 | G98: 1 | H98: 7 | J98: 0.5077562792 | K98: -0.7087813177 | L98: 0.2499400907 | M98: 1 | N98: 0
B99: 0 | C99: 1 | D99: 5 | E99: 6 | F99: 5 | G99: 2 | H99: 7 | J99: 0.2978785522 | K99: -0.3536488873 | L99: 0.2091472258 | M99: 0 | N99: 1
B100: 0 | C100: 1 | D100: 6 | E100: 7 | F100: 7 | G100: 2 | H100: 4 | J100: 0.308726283 | K100: -0.3692194164 | L100: 0.2134150803 | M100: 0 | N100: 1
B101: 0 | C101: 1 | D101: 6 | E101: 5 | F101: 5 | G101: 3 | H101: 5 | J101: 0.1758792605 | K101: -0.1934382312 | L101: 0.1449463562 | M101: 0 | N101: 1
B102: 0 | C102: 1 | D102: 4 | E102: 7 | F102: 7 | G102: 2 | H102: 6 | J102: 0.2413900355 | K102: -0.2762675144 | L102: 0.1831216677 | M102: 0 | N102: 1
B103: 1 | C103: 1 | D103: 7 | E103: 7 | F103: 7 | G103: 1 | H103: 7 | J103: 0.7010203264 | K103: -0.3552183961 | L103: 0.2095910482 | M103: 1 | N103: 1
B104: 1 | C104: 1 | D104: 7 | E104: 6 | F104: 7 | G104: 2 | H104: 7 | J104: 0.5627090703 | K104: -0.5749925334 | L104: 0.2460683191 | M104: 1 | N104: 1
B105: 1 | C105: 1 | D105: 7 | E105: 6 | F105: 6 | G105: 2 | H105: 7 | J105: 0.5308273998 | K105: -0.6333183581 | L105: 0.2490502675 | M105: 1 | N105: 1
B106: 0 | C106: 1 | D106: 7 | E106: 7 | F106: 6 | G106: 1 | H106: 7 | J106: 0.6733692397 | K106: -1.118924919 | L106: 0.2199434846 | M106: 1 | N106: 0
B107: 1 | C107: 1 | D107: 7 | E107: 4 | F107: 7 | G107: 1 | H107: 7 | J107: 0.608075671 | K107: -0.4974559459 | L107: 0.2383200417 | M107: 1 | N107: 1
B108: 0 | C108: 1 | D108: 7 | E108: 4 | F108: 3 | G108: 3 | H108: 7 | J108: 0.2688887088 | K108: -0.3131895856 | L108: 0.1965877124 | M108: 0 | N108: 1
B109: 0 | C109: 1 | D109: 5 | E109: 2 | F109: 4 | G109: 1 | H109: 7 | J109: 0.2545788028 | K109: -0.293805855 | L109: 0.1897692881 | M109: 0 | N109: 1
B110: 0 | C110: 1 | D110: 7 | E110: 6 | F110: 7 | G110: 3 | H110: 6 | J110: 0.385376848 | K110: -0.4867459599 | L110: 0.2368624215 | M110: 0 | N110: 1
B111: 0 | C111: 1 | D111: 7 | E111: 5 | F111: 6 | G111: 2 | H111: 5 | J111: 0.3711297217 | K111: -0.4638302784 | L111: 0.2333927395 | M111: 0 | N111: 1
B112: 0 | C112: 1 | D112: 7 | E112: 7 | F112: 6 | G112: 4 | H112: 6 | J112: 0.284918048 | K112: -0.3353581247 | L112: 0.2037400507 | M112: 0 | N112: 1
B113: 1 | C113: 1 | D113: 7 | E113: 7 | F113: 7 | G113: 1 | H113: 7 | J113: 0.7010203264 | K113: -0.3552183961 | L113: 0.2095912358 | M113: 1 | N113: 1
B114: 0 | C114: 1 | D114: 5 | E114: 7 | F114: 7 | G114: 2 | H114: 7 | J114: 0.3864210661 | K114: -0.4884463615 | L114: 0.2371004503 | M114: 0 | N114: 1
B115: 1 | C115: 1 | D115: 7 | E115: 7 | F115: 7 | G115: 1 | H115: 7 | J115: 0.7010203264 | K115: -0.3552183961 | L115: 0.2095908511 | M115: 1 | N115: 1
B116: 0 | C116: 1 | D116: 5 | E116: 4 | F116: 7 | G116: 2 | H116: 5 | J116: 0.1996460518 | K116: -0.2227012139 | L116: 0.1597885002 | M116: 0 | N116: 1
B117: 0 | C117: 1 | D117: 4 | E117: 7 | F117: 7 | G117: 1 | H117: 7 | J117: 0.3950527251 | K117: -0.5026139736 | L117: 0.2389866884 | M117: 0 | N117: 1
B118: 0 | C118: 1 | D118: 7 | E118: 7 | F118: 5 | G118: 1 | H118: 5 | J118: 0.5203811191 | K118: -0.7347634885 | L118: 0.2495850044 | M118: 1 | N118: 0
B119: 0 | C119: 1 | D119: 4 | E119: 7 | F119: 7 | G119: 4 | H119: 6 | J119: 0.1120688192 | K119: -0.1188610381 | L119: 0.09951027045 | M119: 0 | N119: 1
B120: 0 | C120: 1 | D120: 5 | E120: 7 | F120: 7 | G120: 4 | H120: 5 | J120: 0.1300762632 | K120: -0.13934973 | L120: 0.1131567845 | M120: 0 | N120: 1
B121: 0 | C121: 1 | D121: 7 | E121: 5 | F121: 2 | G121: 1 | H121: 7 | J121: 0.4833524057 | K121: -0.6603942727 | L121: 0.2497232181 | M121: 0 | N121: 1
B122: 0 | C122: 1 | D122: 6 | E122: 6 | F122: 6 | G122: 1 | H122: 5 | J122: 0.4125410793 | K122: -0.5319489576 | L122: 0.2423517073 | M122: 0 | N122: 1
B123: 0 | C123: 1 | D123: 5 | E123: 5 | F123: 4 | G123: 3 | H123: 6 | J123: 0.1367306753 | K123: -0.1470285569 | L123: 0.1180361089 | M123: 0 | N123: 1
B124: 0 | C124: 1 | D124: 6 | E124: 6 | F124: 4 | G124: 2 | H124: 2 | J124: 0.1366952431 | K124: -0.1469875136 | L124: 0.1180106023 | M124: 0 | N124: 1
B125: 1 | C125: 1 | D125: 6 | E125: 4 | F125: 7 | G125: 1 | H125: 7 | J125: 0.5032839769 | K125: -0.6866007018 | L125: 0.2499899807 | M125: 1 | N125: 1
B126: 0 | C126: 1 | D126: 5 | E126: 7 | F126: 6 | G126: 5 | H126: 6 | J126: 0.0966740748 | K126: -0.1016718547 | L126: 0.08732860411 | M126: 0 | N126: 1
B127: 1 | C127: 1 | D127: 4 | E127: 7 | F127: 6 | G127: 1 | H127: 3 | J127: 0.1706239261 | K127: -1.768293407 | L127: 0.1415115893 | M127: 0 | N127: 0
B128: 1 | C128: 1 | D128: 7 | E128: 7 | F128: 7 | G128: 1 | H128: 7 | J128: 0.7010203264 | K128: -0.3552183961 | L128: 0.209591319 | M128: 1 | N128: 1
B129: 1 | C129: 1 | D129: 7 | E129: 6 | F129: 6 | G129: 4 | H129: 5 | J129: 0.2117452989 | K129: -1.552371147 | L129: 0.1669099942 | M129: 0 | N129: 0
B130: 1 | C130: 1 | D130: 7 | E130: 5 | F130: 5 | G130: 1 | H130: 7 | J130: 0.5791971481 | K130: -0.5461123617 | L130: 0.243728641 | M130: 1 | N130: 1
B131: 1 | C131: 1 | D131: 7 | E131: 7 | F131: 7 | G131: 1 | H131: 7 | J131: 0.7010203264 | K131: -0.3552183961 | L131: 0.2095911687 | M131: 1 | N131: 1
B132: 0 | C132: 1 | D132: 3 | E132: 7 | F132: 7 | G132: 1 | H132: 7 | J132: 0.2989680983 | K132: -0.3552018841 | L132: 0.2095863083 | M132: 0 | N132: 1
B133: 0 | C133: 1 | D133: 7 | E133: 7 | F133: 7 | G133: 1 | H133: 7 | J133: 0.7010203264 | K133: -1.207379689 | L133: 0.2095910694 | M133: 1 | N133: 0
B134: 0 | C134: 1 | D134: 7 | E134: 5 | F134: 5 | G134: 1 | H134: 6 | J134: 0.5157149462 | K134: -0.7250815914 | L134: 0.2497538717 | M134: 1 | N134: 0
B135: 0 | C135: 1 | D135: 4 | E135: 6 | F135: 7 | G135: 3 | H135: 4 | J135: 0.09463875497 | K135: -0.09942124915 | L135: 0.08568325831 | M135: 0 | N135: 1
B136: 0 | C136: 1 | D136: 7 | E136: 5 | F136: 5 | G136: 1 | H136: 6 | J136: 0.5157149462 | K136: -0.7250815914 | L136: 0.2497536787 | M136: 1 | N136: 0
B137: 0 | C137: 1 | D137: 7 | E137: 7 | F137: 7 | G137: 1 | H137: 7 | J137: 0.7010203264 | K137: -1.207379689 | L137: 0.2095913178 | M137: 1 | N137: 0
B138: 0 | C138: 1 | D138: 6 | E138: 6 | F138: 4 | G138: 1 | H138: 5 | J138: 0.3518616343 | K138: -0.4336510781 | L138: 0.2280552953 | M138: 0 | N138: 1
B139: 0 | C139: 1 | D139: 6 | E139: 6 | F139: 7 | G139: 1 | H139: 3 | J139: 0.3234484983 | K139: -0.3907467046 | L139: 0.2188296937 | M139: 0 | N139: 1
B140: 1 | C140: 1 | D140: 7 | E140: 7 | F140: 7 | G140: 1 | H140: 7 | J140: 0.7010203264 | K140: -0.3552183961 | L140: 0.2095916016 | M140: 1 | N140: 1
B141: 1 | C141: 1 | D141: 7 | E141: 6 | F141: 5 | G141: 5 | H141: 4 | J141: 0.1032071631 | K141: -2.271017018 | L141: 0.09255597186 | M141: 0 | N141: 0
B142: 0 | C142: 1 | D142: 7 | E142: 4 | F142: 4 | G142: 7 | H142: 6 | J142: 0.04844893431 | K142: -0.04966192507 | L142: 0.04610220023 | M142: 0 | N142: 1
B143: 1 | C143: 1 | D143: 7 | E143: 7 | F143: 7 | G143: 2 | H143: 6 | J143: 0.5332532485 | K143: -0.6287588298 | L143: 0.2488943191 | M143: 1 | N143: 1
B144: 1 | C144: 1 | D144: 7 | E144: 7 | F144: 7 | G144: 1 | H144: 7 | J144: 0.7010203264 | K144: -0.3552183961 | L144: 0.2095912694 | M144: 1 | N144: 1
B145: 1 | C145: 1 | D145: 7 | E145: 7 | F145: 7 | G145: 1 | H145: 7 | J145: 0.7010203264 | K145: =B145*LN(J145)+(1-B145)*LN(1-J145) -> -0.3552183961 | L145: 0.2095910818 | M145: 1 | N145: =IF(B145=M145,1,0) -> 1
B146: 1 | C146: 1 | D146: 7 | E146: 4 | F146: 4 | G146: 1 | H146: 7 | J146: =1/(1+EXP(-(F$3*C146+F$4*D146+F$5*E146+F$6*F146+F$7*G146+F$8*H146))) -> 0.513281143 | K146: -0.6669315469 | L146: =J146*(1-J146)+0.000001*RAND() -> 0.2498236345 | M146: =IF(J146>0.5,1,0) -> 1 | N146: 1
B147: 1 | C147: 1 | D147: 7 | E147: 7 | F147: 7 | G147: 1 | H147: 7 | J147: 0.7010203264 | K147: -0.3552183961 | L147: 0.2095913705 | M147: 1 | N147: 1
B148: 1 | C148: 1 | D148: 6 | E148: 5 | F148: 5 | G148: 3 | H148: 3 | J148: 0.113275114 | K148: -2.177935782 | L148: 0.1004445205 | M148: 0 | N148: 0
B149: 1 | C149: 1 | D149: 7 | E149: 7 | F149: 7 | G149: 1 | H149: 7 | J149: 0.7010203264 | K149: -0.3552183961 | L149: 0.2095918131 | M149: 1 | N149: 1
B150: 1 | C150: 1 | D150: 7 | E150: 7 | F150: 7 | G150: 1 | H150: 7 | J150: 0.7010203264 | K150: -0.3552183961 | L150: 0.2095915579 | M150: 1 | N150: 1
B151: 0 | C151: 1 | D151: 4 | E151: 4 | F151: 5 | G151: 4 | H151: 3 | J151: 0.02903181382 | K151: -0.02946157521 | L151: 0.02818940572 | M151: 0 | N151: 1
B152: 0 | C152: 1 | D152: 7 | E152: 6 | F152: 7 | G152: 1 | H152: 7 | J152: 0.6713986395 | K152: -1.112909933 | L152: 0.2206231532 | M152: 1 | N152: 0
B153: 1 | C153: 1 | D153: 7 | E153: 6 | F153: 4 | G153: 1 | H153: 7 | J153: 0.5813759192 | K153: -0.5423577103 | L153: 0.2433780715 | M153: 1 | N153: 1
B154: 1 | C154: 1 | D154: 7 | E154: 5 | F154: 6 | G154: 1 | H154: 6 | J154: 0.5477486295 | K154: -0.6019388026 | L154: 0.2477208067 | M154: 1 | N154: 1
B155: 1 | C155: 1 | D155: 7 | E155: 6 | F155: 5 | G155: 1 | H155: 7 | J155: 0.612331227 | K155: -0.4904819222 | L155: 0.2373824999 | M155: 1 | N155: 1
B156: 1 | C156: 1 | D156: 7 | E156: 6 | F156: 5 | G156: 1 | H156: 7 | J156: 0.612331227 | K156: -0.4904819222 | L156: 0.2373820678 | M156: 1 | N156: 1
B157: 0 | C157: 1 | D157: 6 | E157: 7 | F157: 5 | G157: 1 | H157: 3 | J157: 0.2978157669 | K157: -0.3535594691 | L157: 0.2091216381 | M157: 0 | N157: 1
B158: 1 | C158: 1 | D158: 7 | E158: 7 | F158: 7 | G158: 1 | H158: 7 | J158: 0.7010203264 | K158: -0.3552183961 | L158: 0.2095915555 | M158: 1 | N158: 1
B159: 0 | C159: 1 | D159: 4 | E159: 7 | F159: 5 | G159: 1 | H159: 4 | J159: 0.1894924198 | K159: -0.2100945854 | L159: 0.1535851649 | M159: 0 | N159: 1
B160: 0 | C160: 1 | D160: 4 | E160: 7 | F160: 7 | G160: 2 | H160: 4 | J160: 0.1599944057 | K160: -0.1743467273 | L160: 0.1343965573 | M160: 0 | N160: 1
B161: 1 | C161: 1 | D161: 7 | E161: 7 | F161: 7 | G161: 1 | H161: 6 | J161: 0.6446406067 | K161: -0.4390623163 | L161: 0.229079546 | M161: 1 | N161: 1
B162: 0 | C162: 1 | D162: 6 | E162: 6 | F162: 7 | G162: 1 | H162: 6 | J162: 0.5079556473 | K162: -0.7091864188 | L162: 0.2499374485 | M162: 1 | N162: 0
B163: 0 | C163: 1 | D163: 7 | E163: 4 | F163: 4 | G163: 2 | H163: 5 | J163: 0.2844665699 | K163: -0.3347269584 | L163: 0.2035460822 | M163: 0 | N163: 1
B164: 1 | C164: 1 | D164: 5 | E164: 6 | F164: 7 | G164: 2 | H164: 7 | J164: 0.3543380019 | K164: -1.037504014 | L164: 0.228783048 | M164: 0 | N164: 0
B165: 0 | C165: 1 | D165: 7 | E165: 6 | F165: 5 | G165: 1 | H165: 6 | J165: 0.5499637115 | K165: -0.7984270584 | L165: 0.2475040933 | M165: 1 | N165: 0
B166: 0 | C166: 1 | D166: 2 | E166: 5 | F166: 6 | G166: 4 | H166: 6 | J166: 0.03469143443 | K166: -0.03530747169 | L166: 0.03348798004 | M166: 0 | N166: 1
B167: 0 | C167: 1 | D167: 4 | E167: 4 | F167: 5 | G167: 3 | H167: 7 | J167: 0.1169995284 | K167: -0.1244295443 | L167: 0.1033114806 | M167: 0 | N167: 1
B168: 1 | C168: 1 | D168: 7 | E168: 5 | F168: 7 | G168: 1 | H168: 7 | J168: 0.6403478272 | K168: -0.4457437702 | L168: 0.2303027696 | M168: 1 | N168: 1
B169: 0 | C169: 1 | D169: 7 | E169: 7 | F169: 7 | G169: 1 | H169: 7 | J169: 0.7010203264 | K169: -1.207379689 | L169: 0.209591761 | M169: 1 | N169: 0
B170: 1 | C170: 1 | D170: 7 | E170: 7 | F170: 7 | G170: 1 | H170: 7 | J170: 0.7010203264 | K170: -0.3552183961 | L170: 0.2095916854 | M170: 1 | N170: 1
B171: 0 | C171: 1 | D171: 7 | E171: 6 | F171: 5 | G171: 3 | H171: 6 | J171: 0.3264724599 | K171: -0.395226393 | L171: 0.2198885223 | M171: 0 | N171: 1
B172: 1 | C172: 1 | D172: 6 | E172: 7 | F172: 7 | G172: 1 | H172: 7 | J172: 0.6049340759 | K172: -0.5026357923 | L172: 0.2389892561 | M172: 1 | N172: 1
B173: 0 | C173: 1 | D173: 1 | E173: 5 | F173: 7 | G173: 6 | H173: 4 | J173: 0.006297688858 | K173: -0.006317602953 | L173: 0.006258993251 | M173: 0 | N173: 1
B174: 0 | C174: 1 | D174: 6 | E174: 4 | F174: 4 | G174: 2 | H174: 7 | J174: 0.3025232458 | K174: -0.3602860932 | L174: 0.2110032894 | M174: 0 | N174: 1
B175: 1 | C175: 1 | D175: 6 | E175: 7 | F175: 7 | G175: 1 | H175: 7 | J175: 0.6049340759 | K175: -0.5026357923 | L175: 0.2389891911 | M175: 1 | N175: 1
B176: 1 | C176: 1 | D176: 7 | E176: 6 | F176: 6 | G176: 1 | H176: 7 | J176: 0.6424054597 | K176: -0.4425356175 | L176: 0.2297216276 | M176: 1 | N176: 1
B177: 0 | C177: 1 | D177: 6 | E177: 6 | F177: 4 | G177: 1 | H177: 7 | J177: 0.4756018373 | K177: -0.6455040307 | L177: 0.249405717 | M177: 0 | N177: 1
B178: 1 | C178: 1 | D178: 4 | E178: 5 | F178: 4 | G178: 4 | H178: 4 | J178: 0.03753016525 | K178: -3.282610263 | L178: 0.03612263609 | M178: 0 | N178: 0
B179: 0 | C179: 1 | D179: 7 | E179: 7 | F179: 7 | G179: 1 | H179: 7 | J179: 0.7010203264 | K179: -1.207379689 | L179: 0.2095910799 | M179: 1 | N179: 0
B180: 0 | C180: 1 | D180: 3 | E180: 2 | F180: 2 | G180: 2 | H180: 5 | J180: 0.04071962589 | K180: -0.04157188592 | L180: 0.03906207762 | M180: 0 | N180: 1
B181: 1 | C181: 1 | D181: 7 | E181: 6 | F181: 6 | G181: 1 | H181: 7 | J181: 0.6424054597 | K181: -0.4425356175 | L181: 0.229721035 | M181: 1 | N181: 1
B182: 0 | C182: 1 | D182: 7 | E182: 6 | F182: 5 | G182: 4 | H182: 5 | J182: 0.1910603519 | K182: -0.2120309654 | L182: 0.1545569084 | M182: 0 | N182: 1
B183: 0 | C183: 1 | D183: 6 | E183: 7 | F183: 7 | G183: 1 | H183: 6 | J183: 0.5422661066 | K183: -0.7814672825 | L183: 0.2482139643 | M183: 1 | N183: 0
B184: 1 | C184: 1 | D184: 7 | E184: 7 | F184: 6 | G184: 3 | H184: 6 | J184: 0.3874979139 | K184: -0.9480448137 | L184: 0.2373439332 | M184: 0 | N184: 0
B185: 0 | C185: 1 | D185: 5 | E185: 7 | F185: 7 | G185: 1 | H185: 7 | J185: 0.4999930964 | K185: -0.6931333734 | L185: 0.2500009424 | M185: 0 | N185: 1
B186: 1 | C186: 1 | D186: 6 | E186: 7 | F186: 7 | G186: 1 | H186: 7 | J186: 0.6049340759 | K186: -0.5026357923 | L186: 0.2389890474 | M186: 1 | N186: 1
B187: 0 | C187: 1 | D187: 6 | E187: 7 | F187: 7 | G187: 2 | H187: 7 | J187: 0.4909292843 | K187: -0.6751683415 | L187: 0.2499182122 | M187: 0 | N187: 1
B188: 0 | C188: 1 | D188: 5 | E188: 6 | F188: 7 | G188: 3 | H188: 5 | J188: 0.1714231501 | K188: -0.1880456886 | L188: 0.142037966 | M188: 0 | N188: 1
B189: 0 | C189: 1 | D189: 5 | E189: 6 | F189: 7 | G189: 3 | H189: 6 | J189: 0.2109886201 | K189: -0.236974535 | L189: 0.166472914 | M189: 0 | N189: 1
B190: 0 | C190: 1 | D190: 4 | E190: 7 | F190: 6 | G190: 2 | H190: 4 | J190: 0.143444916 | K190: -0.1548366504 | L190: 0.1228691784 | M190: 0 | N190: 1
B191: 0 | C191: 1 | D191: 6 | E191: 3 | F191: 4 | G191: 2 | H191: 7 | J191: 0.2742919704 | K191: -0.3206075081 | L191: 0.1990567794 | M191: 0 | N191: 1
B192: 1 | C192: 1 | D192: 7 | E192: 4 | F192: 5 | G192: 1 | H192: 7 | J192: 0.5453338835 | K192: -0.6063570416 | L192: 0.2479451762 | M192: 1 | N192: 1
B193: 0 | C193: 1 | D193: 6 | E193: 4 | F193: 5 | G193: 4 | H193: 4 | J193: 0.08308774551 | K193: -0.08674349889 | L193: 0.07618470152 | M193: 0 | N193: 1
B194: 1 | C194: 1 | D194: 7 | E194: 6 | F194: 5 | G194: 1 | H194: 7 | J194: 0.612331227 | K194: -0.4904819222 | L194: 0.2373822367 | M194: 1 | N194: 1
B195: 1 | C195: 1 | D195: 7 | E195: 5 | F195: 5 | G195: 1 | H195: 7 | J195: 0.5791971481 | K195: -0.5461123617 | L195: 0.243728529 | M195: 1 | N195: 1
B196: 1 | C196: 1 | D196: 7 | E196: 7 | F196: 6 | G196: 1 | H196: 7 | J196: 0.6733692397 | K196: -0.3954614525 | L196: 0.2199439804 | M196: 1 | N196: 1
B197: 1 | C197: 1 | D197: 6 | E197: 6 | F197: 7 | G197: 1 | H197: 7 | J197: 0.5716100767 | K197: -0.5592982041 | L197: 0.2448725148 | M197: 1 | N197: 1
B198: 0 | C198: 1 | D198: 4 | E198: 7 | F198: 7 | G198: 2 | H198: 6 | J198: 0.2413900355 | K198: -0.2762675144 | L198: 0.1831217834 | M198: 0 | N198: 1
B199: 0 | C199: 1 | D199: 4 | E199: 6 | F199: 6 | G199: 3 | H199: 4 | J199: 0.08417211238 | K199: -0.08792682757 | L199: 0.07708801934 | M199: 0 | N199: 1
B200: 1 | C200: 1 | D200: 7 | E200: 4 | F200: 4 | G200: 1 | H200: 7 | J200: 0.513281143 | K200: -0.6669315469 | L200: 0.2498244954 | M200: 1 | N200: 1
B201: 1 | C201: 1 | D201: 7 | E201: 7 | F201: 7 | G201: 1 | H201: 7 | J201: 0.7010203264 | K201: -0.3552183961 | L201: 0.2095908626 | M201: 1 | N201: 1
... 1315 more rows

Sheet ST_BestSub4
A1: Logistic Regression Significance Testing for the 4-Predictor Model
A2: Y = 1 if recommended the resataurant, else 0 | E2: b-hat | F2: se(b-hat) | G2: Wald | H2: z | I2: p-value | J2: exp(b-hat) | L2: Covariance Matrix
A3: Intercept Term | E3: -5.007368317 | F3: =SQRT(INDEX(L3:P7,,ROWS($1:1))) -> 0.6986466531 | G3: =(E3/F3)^2 -> 51.36933083 | H3: =E3/F3 -> -7.167240113 | I3: =2*(1-NORMDIST(ABS(H3),0,1,1)) -> 7.651657086e-13 | L3: =MINVERSE(MMULT(MMULT(TRANSPOSE(C17:G1016),IF(N17:N1016=TRANSPOSE(N17:N1016),N17:N1016,0)),C17:G1016)) -> 0.4881071459 | M3: -0.02375422639 | N3: -0.02084008944 | O3: -0.02327546356 | P3: -0.02686145271
A4: X2 = the entrées are delicious | E4: 0.4313380207 | F4: =SQRT(INDEX(L4:P8,,ROWS($1:2))) -> 0.07525508228 | G4: =(E4/F4)^2 -> 32.85215116 | H4: =E4/F4 -> 5.73167961 | I4: 9.944097323e-09 | J4: =EXP(E4) -> 1.539315783 | L4: -0.02375422639 | M4: 0.005663327409 | N4: 6.833882908e-05 | O4: 4.565308287e-05 | P4: -0.001965005529
A5: X6 = the noise level in the restaurant is not distracting to me | E5: 0.2094881419 | F5: =SQRT(INDEX(L5:P9,,ROWS($1:3))) -> 0.05813038512 | G5: 12.9871091 | H5: 3.603763186 | I5: 0.0003136428453 | J5: =EXP(E5) -> 1.233046753 | L5: -0.02084008944 | M5: 6.833882908e-05 | N5: 0.003379141674 | O5: 0.0001965440046 | P5: -5.398690005e-05
A6: X8 = the wait for food service is excessive | E6: -0.4634013103 | F6: =SQRT(INDEX(L6:P10,,ROWS($1:4))) -> 0.07687529993 | G6: 36.33631389 | H6: -6.027961006 | I6: 1.66041092e-09 | J6: =EXP(E6) -> 0.6291401015 | L6: -0.02327546356 | M6: 4.565308287e-05 | N6: 0.0001965440046 | O6: 0.005909811739 | P6: 0.001883516789
A7: X10 = restaurant service personnel are courteous and friendly | E7: 0.2549392474 | F7: =SQRT(INDEX(L7:P11,,ROWS($1:5))) -> 0.07615550515 | G7: 11.20652056 | H7: 3.347614159 | I7: 0.0008151040859 | J7: =EXP(E7) -> 1.290383224 | L7: -0.02686145271 | M7: -0.001965005529 | N7: -5.398690005e-05 | O7: 0.001883516789 | P7: 0.005799660964
A9: Deviance (-2LL) | E9: =-2*SUM(M17:M1016) -> 1114.615447
A10: Akaike's Information Criterion (AIC) = | E10: =E9+2*5 -> 1124.615447
A11: Bayesian Information Criterion (BIC) = | E11: =E9+5*LOG(1000) -> 1129.615447
A13: % Correctly Classified (Training Sample) = | E13: =SUM(P17:P1016)/1000 -> 0.791
A14: % Correctly Classified (Holdout Sample) = | E14: =SUM(P1017:P1516)/500 -> 0.768
L15: Prob
A16: Customer | B16: Y | C16: X0 | D16: X2 | E16: X6 | F16: X8 | G16: X10 | L16: Y = 1 | M16: LL | N16: V | O16: PRED | P16: Correct?
A17: 1 | B17: 0 | C17: 1 | D17: 7 | E17: 6 | F17: 4 | G17: 5 | L17: =1/(1+EXP(-(E$3+E$4*D17+E$5*E17+E$6*F17+E$7*G17))) -> 0.2124898018 | M17: =B17*LN(L17)+(1-B17)*LN(1-L17) -> -0.2388789583 | N17: =L17*(1-L17)+0.000001*RAND() -> 0.1673384058 | O17: =IF(L17>0.5,1,0) -> 0 | P17: =IF(B17=O17,1,0) -> 1
A18: 2 | B18: 0 | C18: 1 | D18: 7 | E18: 7 | F18: 3 | G18: 6 | L18: 0.405607574 | M18: -0.5202155279 | N18: =L18*(1-L18)+0.000001*RAND() -> 0.24109053 | O18: =IF(L18>0.5,1,0) -> 0 | P18: 1
A19: 3 | B19: 0 | C19: 1 | D19: 7 | E19: 7 | F19: 3 | G19: 7 | L19: 0.4682392273 | M19: -0.6315615662 | N19: 0.2489922064 | O19: 0 | P19: 1
A20: 4 | B20: 1 | C20: 1 | D20: 6 | E20: 6 | F20: 3 | G20: 4 | L20: 0.1775758698 | M20: -1.728357326 | N20: 0.1460428704 | O20: 0 | P20: 0
A21: 5 | B21: 1 | C21: 1 | D21: 7 | E21: 7 | F21: 5 | G21: 6 | L21: 0.2126615544 | M21: -1.548053324 | N21: 0.1674371854 | O21: 0 | P21: 0
A22: 6 | B22: 1 | C22: 1 | D22: 7 | E22: 5 | F22: 1 | G22: 7 | L22: 0.5940206915 | M22: -0.5208411261 | N22: 0.2411606492 | O22: 1 | P22: 1
A23: 7 | B23: 1 | C23: 1 | D23: 5 | E23: 7 | F23: 3 | G23: 2 | L23: 0.094098655 | M23: -2.363411526 | N23: 0.08524473729 | O23: 0 | P23: 0
A24: 8 | B24: 0 | C24: 1 | D24: 7 | E24: 7 | F24: 1 | G24: 7 | L24: 0.6898863953 | M24: -1.170816582 | N24: 0.2139440087 | O24: 1 | P24: 0
A25: 9 | B25: 1 | C25: 1 | D25: 7 | E25: 7 | F25: 1 | G25: 7 | L25: 0.6898863953 | M25: -0.3712283394 | N25: 0.2139438959 | O25: 1 | P25: 1
A26: 10 | B26: 0 | C26: 1 | D26: 7 | E26: 2 | F26: 1 | G26: 7 | L26: 0.4383521506 | M26: -0.576880228 | N26: 0.2462004916 | O26: 0 | P26: 1
A27: 11 | B27: 0 | C27: 1 | D27: 6 | E27: 7 | F27: 3 | G27: 4 | L27: 0.2102581363 | M27: -0.2360491418 | N27: 0.1660503925 | O27: 0 | P27: 1
A28: 12 | B28: 1 | C28: 1 | D28: 7 | E28: 3 | F28: 1 | G28: 7 | L28: 0.490410095 | M28: -0.7125133094 | N28: 0.2499085346 | O28: 0 | P28: 0
A29: 13 | B29: 1 | C29: 1 | D29: 7 | E29: 4 | F29: 4 | G29: 5 | L29: 0.1507208336 | M29: -1.892325937 | N29: 0.1280049134 | O29: 0 | P29: 0
A30: 14 | B30: 0 | C30: 1 | D30: 7 | E30: 6 | F30: 2 | G30: 4 | L30: 0.3456718766 | M30: -0.4241463357 | N30: 0.2261833316 | O30: 0 | P30: 1
A31: 15 | B31: 1 | C31: 1 | D31: 7 | E31: 4 | F31: 1 | G31: 6 | L31: 0.4790584006 | M31: -0.7359327671 | N31: 0.2495621385 | O31: 0 | P31: 0
A32: 16 | B32: 1 | C32: 1 | D32: 7 | E32: 6 | F32: 1 | G32: 7 | L32: 0.6433881131 | M32: -0.4410071395 | N32: 0.2294407987 | O32: 1 | P32: 1
A33: 17 | B33: 1 | C33: 1 | D33: 6 | E33: 7 | F33: 1 | G33: 7 | L33: 0.5910361028 | M33: -0.5258781758 | N33: 0.2417133564 | O33: 1 | P33: 1
A34: 18 | B34: 1 | C34: 1 | D34: 2 | E34: 3 | F34: 4 | G34: 5 | L34: 0.01638067205 | M34: -4.111653173 | N34: 0.01611287661 | O34: 0 | P34: 0
A35: 19 | B35: 1 | C35: 1 | D35: 3 | E35: 6 | F35: 4 | G35: 5 | L35: 0.04585486874 | M35: -3.082273898 | N35: 0.04375266165 | O35: 0 | P35: 0
A36: 20 | B36: 0 | C36: 1 | D36: 7 | E36: 4 | F36: 3 | G36: 4 | L36: 0.1793884122 | M36: -0.1977053779 | N36: 0.1472084636 | O36: 0 | P36: 1
A37: 21 | B37: 0 | C37: 1 | D37: 7 | E37: 6 | F37: 6 | G37: 5 | L37: 0.09649547996 | M37: -0.1014741662 | N37: 0.08718476258 | O37: 0 | P37: 1
A38: 22 | B38: 0 | C38: 1 | D38: 7 | E38: 7 | F38: 2 | G38: 5 | L38: 0.4566859489 | M38: -0.6100677633 | N38: 0.2481242711 | O38: 0 | P38: 1
A39: 23 | B39: 0 | C39: 1 | D39: 7 | E39: 6 | F39: 2 | G39: 7 | L39: 0.5316323938 | M39: -0.758501808 | N39: 0.248999511 | O39: 1 | P39: 0
A40: 24 | B40: 1 | C40: 1 | D40: 7 | E40: 5 | F40: 1 | G40: 7 | L40: 0.5940206915 | M40: -0.5208411261 | N40: 0.2411607407 | O40: 1 | P40: 1
A41: 25 | B41: 1 | C41: 1 | D41: 7 | E41: 7 | F41: 1 | G41: 7 | L41: 0.6898863953 | M41: -0.3712283394 | N41: 0.213943204 | O41: 1 | P41: 1
A42: 26 | B42: 0 | C42: 1 | D42: 6 | E42: 7 | F42: 1 | G42: 6 | L42: 0.5282974733 | M42: -0.7514067321 | N42: 0.2492001631 | O42: 1 | P42: 0
A43: 27 | B43: 1 | C43: 1 | D43: 7 | E43: 7 | F43: 1 | G43: 7 | L43: 0.6898863953 | M43: -0.3712283394 | N43: 0.2139435862 | O43: 1 | P43: 1
A44: 28 | B44: 1 | C44: 1 | D44: 7 | E44: 5 | F44: 1 | G44: 7 | L44: 0.5940206915 | M44: -0.5208411261 | N44: 0.2411608961 | O44: 1 | P44: 1
A45: 29 | B45: 0 | C45: 1 | D45: 2 | E45: 7 | F45: 1 | G45: 3 | L45: 0.0849544317 | M45: -0.08878141352 | N45: 0.07773814899 | O45: 0 | P45: 1
A46: 30 | B46: 1 | C46: 1 | D46: 6 | E46: 7 | F46: 1 | G46: 7 | L46: 0.5910361028 | M46: -0.5258781758 | N46: 0.2417132239 | O46: 1 | P46: 1
A47: 31 | B47: 1 | C47: 1 | D47: 6 | E47: 7 | F47: 4 | G47: 4 | L47: 0.1434690093 | M47: -1.94163623 | N47: 0.1228865501 | O47: 0 | P47: 0
A48: 32 | B48: 0 | C48: 1 | D48: 5 | E48: 7 | F48: 1 | G48: 7 | L48: 0.4842332793 | M48: -0.6621007075 | N48: 0.2497517802 | O48: 0 | P48: 1
A49: 33 | B49: 0 | C49: 1 | D49: 7 | E49: 7 | F49: 5 | G49: 7 | L49: 0.2584544732 | M49: -0.2990187211 | N49: 0.191656256 | O49: 0 | P49: 1
A50: 34 | B50: 1 | C50: 1 | D50: 5 | E50: 5 | F50: 4 | G50: 6 | L50: 0.1064804075 | M50: -2.239794278 | N50: 0.09514289092 | O50: 0 | P50: 0
A51: 35 | B51: 0 | C51: 1 | D51: 7 | E51: 3 | F51: 1 | G51: 7 | L51: 0.490410095 | M51: -0.6741489845 | N51: 0.2499084022 | O51: 0 | P51: 1
A52: 36 | B52: 0 | C52: 1 | D52: 5 | E52: 6 | F52: 1 | G52: 5 | L52: 0.3137911403 | M52: -0.3765732373 | N52: 0.2153264767 | O52: 0 | P52: 1
A53: 37 | B53: 0 | C53: 1 | D53: 7 | E53: 3 | F53: 4 | G53: 5 | L53: 0.1258185965 | M53: -0.1344673694 | N53: 0.1099884532 | O53: 0 | P53: 1
A54: 38 | B54: 1 | C54: 1 | D54: 7 | E54: 3 | F54: 1 | G54: 7 | L54: 0.490410095 | M54: -0.7125133094 | N54: 0.2499089647 | O54: 0 | P54: 0
A55: 39 | B55: 0 | C55: 1 | D55: 6 | E55: 5 | F55: 3 | G55: 6 | L55: 0.2257497722 | M55: -0.2558601659 | N55: 0.1747871118 | O55: 0 | P55: 1
A56: 40 | B56: 1 | C56: 1 | D56: 7 | E56: 2 | F56: 1 | G56: 7 | L56: 0.4383521506 | M56: -0.8247326948 | N56: 0.2462001368 | O56: 0 | P56: 0
A57: 41 | B57: 1 | C57: 1 | D57: 7 | E57: 6 | F57: 1 | G57: 7 | L57: 0.6433881131 | M57: -0.4410071395 | N57: 0.229439859 | O57: 1 | P57: 1
A58: 42 | B58: 0 | C58: 1 | D58: 5 | E58: 7 | F58: 3 | G58: 5 | L58: 0.182459992 | M58: -0.2014554379 | N58: 0.1491692927 | O58: 0 | P58: 1
A59: 43 | B59: 0 | C59: 1 | D59: 4 | E59: 6 | F59: 3 | G59: 2 | L59: 0.05188663584 | M59: -0.05328120143 | N59: 0.04919491566 | O59: 0 | P59: 1
A60: 44 | B60: 0 | C60: 1 | D60: 7 | E60: 5 | F60: 4 | G60: 6 | L60: 0.2201948543 | M60: -0.2487112038 | N60: 0.1717095913 | O60: 0 | P60: 1
A61: 45 | B61: 0 | C61: 1 | D61: 5 | E61: 7 | F61: 1 | G61: 7 | L61: 0.4842332793 | M61: -0.6621007075 | N61: 0.2497520009 | O61: 0 | P61: 1
A62: 46 | B62: 0 | C62: 1 | D62: 4 | E62: 7 | F62: 2 | G62: 7 | L62: 0.2773134505 | M62: -0.3247796924 | N62: 0.2004114862 | O62: 0 | P62: 1
A63: 47 | B63: 0 | C63: 1 | D63: 5 | E63: 4 | F63: 3 | G63: 4 | L63: 0.08446490407 | M63: -0.08824658034 | N63: 0.07733125787 | O63: 0 | P63: 1
A64: 48 | B64: 0 | C64: 1 | D64: 5 | E64: 6 | F64: 2 | G64: 6 | L64: 0.2707310901 | M64: -0.3157127399 | N64: 0.1974367064 | O64: 0 | P64: 1
A65: 49 | B65: 0 | C65: 1 | D65: 6 | E65: 7 | F65: 4 | G65: 5 | L65: 0.1777257707 | M65: -0.1956813272 | N65: 0.1461399994 | O65: 0 | P65: 1
A66: 50 | B66: 1 | C66: 1 | D66: 7 | E66: 7 | F66: 1 | G66: 7 | L66: 0.6898863953 | M66: -0.3712283394 | N66: 0.2139438607 | O66: 1 | P66: 1
A67: 51 | B67: 0 | C67: 1 | D67: 6 | E67: 7 | F67: 2 | G67: 6 | L67: 0.4133605151 | M67: -0.5333448132 | N67: 0.2424940061 | O67: 0 | P67: 1
A68: 52 | B68: 0 | C68: 1 | D68: 6 | E68: 7 | F68: 1 | G68: 7 | L68: 0.5910361028 | M68: -0.8941283977 | N68: 0.2417132756 | O68: 1 | P68: 0
A69: 53 | B69: 0 | C69: 1 | D69: 5 | E69: 5 | F69: 4 | G69: 5 | L69: 0.08454428519 | M69: -0.08833328872 | N69: 0.07739686055 | O69: 0 | P69: 1
A70: 54 | B70: 0 | C70: 1 | D70: 7 | E70: 7 | F70: 3 | G70: 7 | L70: 0.4682392273 | M70: -0.6315615662 | N70: 0.2489916835 | O70: 0 | P70: 1
A71: 55 | B71: 0 | C71: 1 | D71: 7 | E71: 4 | F71: 4 | G71: 6 | L71: 0.1863324594 | M71: -0.2062034232 | N71: 0.1516130346 | O71: 0 | P71: 1
A72: 56 | B72: 0 | C72: 1 | D72: 4 | E72: 7 | F72: 2 | G72: 6 | L72: 0.2292119384 | M72: -0.2603418309 | N72: 0.1766739329 | O72: 0 | P72: 1
A73: 57 | B73: 0 | C73: 1 | D73: 7 | E73: 4 | F73: 3 | G73: 2 | L73: 0.1160504439 | M73: -0.1233552812 | N73: 0.1025831434 | O73: 0 | P73: 1
A74: 58 | B74: 0 | C74: 1 | D74: 7 | E74: 4 | F74: 2 | G74: 5 | L74: 0.3095645211 | M74: -0.3704327517 | N74: 0.213734939 | O74: 0 | P74: 1
A75: 59 | B75: 1 | C75: 1 | D75: 7 | E75: 7 | F75: 1 | G75: 6 | L75: 0.6328932282 | M75: -0.4574535468 | N75: 0.2323403614 | O75: 1 | P75: 1
A76: 60 | B76: 1 | C76: 1 | D76: 6 | E76: 7 | F76: 1 | G76: 4 | L76: 0.4021373087 | M76: -0.9109616848 | N76: 0.2404234603 | O76: 0 | P76: 0
B77: 0 | C77: 1 | D77: 7 | E77: 7 | F77: 1 | G77: 7 | L77: 0.6898863953 | M77: -1.170816582 | N77: 0.213943823 | O77: 1 | P77: 0
B78: 1 | C78: 1 | D78: 7 | E78: 6 | F78: 2 | G78: 7 | L78: 0.5316323938 | M78: -0.6318030176 | N78: 0.2489994406 | O78: 1 | P78: 1
B79: 1 | C79: 1 | D79: 7 | E79: 6 | F79: 1 | G79: 7 | L79: 0.6433881131 | M79: -0.4410071395 | N79: 0.2294404072 | O79: 1 | P79: 1
B80: 1 | C80: 1 | D80: 6 | E80: 6 | F80: 1 | G80: 7 | L80: 0.5396073617 | M80: -0.6169135119 | N80: 0.2484319471 | O80: 1 | P80: 1
B81: 1 | C81: 1 | D81: 6 | E81: 7 | F81: 1 | G81: 7 | L81: =1/(1+EXP(-(E$3+E$4*D81+E$5*E81+E$6*F81+E$7*G81))) -> 0.5910361028 | M81: =B81*LN(L81)+(1-B81)*LN(1-L81) -> -0.5258781758 | N81: 0.2417126721 | O81: 1 | P81: =IF(B81=O81,1,0) -> 1
B82: 0 | C82: 1 | D82: 7 | E82: 7 | F82: 2 | G82: 7 | L82: 0.5832639869 | M82: -0.8753023197 | N82: =L82*(1-L82)+0.000001*RAND() -> 0.2430678944 | O82: =IF(L82>0.5,1,0) -> 1 | P82: 0
B83: 1 | C83: 1 | D83: 7 | E83: 7 | F83: 1 | G83: 7 | L83: 0.6898863953 | M83: -0.3712283394 | N83: 0.2139437386 | O83: 1 | P83: 1
B84: 1 | C84: 1 | D84: 7 | E84: 7 | F84: 3 | G84: 6 | L84: 0.405607574 | M84: -0.9023691533 | N84: 0.2410904521 | O84: 0 | P84: 0
B85: 0 | C85: 1 | D85: 2 | E85: 4 | F85: 5 | G85: 4 | L85: 0.009912573278 | M85: -0.009962029932 | N85: 0.009815190055 | O85: 0 | P85: 1
B86: 1 | C86: 1 | D86: 1 | E86: 3 | F86: 4 | G86: 3 | L86: 0.006455455118 | M86: -5.042829751 | N86: 0.006414008675 | O86: 0 | P86: 0
B87: 0 | C87: 1 | D87: 6 | E87: 5 | F87: 5 | G87: 2 | L87: 0.0399626263 | M87: -0.04078306434 | N87: 0.0383661432 | O87: 0 | P87: 1
B88: 0 | C88: 1 | D88: 5 | E88: 7 | F88: 3 | G88: 6 | L88: 0.2235964313 | M88: -0.2530828312 | N88: 0.1736014466 | O88: 0 | P88: 1
B89: 0 | C89: 1 | D89: 7 | E89: 5 | F89: 2 | G89: 7 | L89: 0.4793144758 | M89: -0.6526090199 | N89: 0.2495730815 | O89: 0 | P89: 1
B90: 0 | C90: 1 | D90: 7 | E90: 7 | F90: 3 | G90: 7 | L90: 0.4682392273 | M90: -0.6315615662 | N90: 0.2489916318 | O90: 0 | P90: 1
B91: 1 | C91: 1 | D91: 7 | E91: 4 | F91: 1 | G91: 7 | L91: 0.5426768615 | M91: -0.6112412346 | N91: 0.2481787352 | O91: 1 | P91: 1
B92: 0 | C92: 1 | D92: 5 | E92: 6 | F92: 1 | G92: 7 | L92: 0.432274815 | M92: -0.5661178065 | N92: 0.24541409 | O92: 0 | P92: 1
B93: 0 | C93: 1 | D93: 6 | E93: 6 | F93: 1 | G93: 7 | L93: 0.5396073617 | M93: -0.7756755919 | N93: 0.2484314208 | O93: 1 | P93: 0
B94: 0 | C94: 1 | D94: 7 | E94: 6 | F94: 4 | G94: 6 | L94: 0.258257868 | M94: -0.2987536273 | N94: 0.1915615181 | O94: 0 | P94: 1
B95: 0 | C95: 1 | D95: 7 | E95: 5 | F95: 1 | G95: 5 | L95: 0.4677282914 | M95: -0.6306011896 | N95: 0.2489594071 | O95: 0 | P95: 1
B96: 0 | C96: 1 | D96: 7 | E96: 7 | F96: 1 | G96: 6 | L96: 0.6328932282 | M96: -1.002102542 | N96: 0.2323395511 | O96: 1 | P96: 0
B97: 1 | C97: 1 | D97: 7 | E97: 6 | F97: 1 | G97: 7 | L97: 0.6433881131 | M97: -0.4410071395 | N97: 0.2294407972 | O97: 1 | P97: 1
B98: 0 | C98: 1 | D98: 6 | E98: 5 | F98: 1 | G98: 7 | L98: 0.4873212031 | M98: -0.6681057568 | N98: 0.249839663 | O98: 0 | P98: 1
B99: 0 | C99: 1 | D99: 5 | E99: 5 | F99: 2 | G99: 7 | L99: 0.2797976818 | M99: -0.328223109 | N99: 0.201511331 | O99: 0 | P99: 1
B100: 0 | C100: 1 | D100: 6 | E100: 7 | F100: 2 | G100: 4 | L100: 0.2973458579 | M100: -0.3528904825 | N100: 0.2089318259 | O100: 0 | P100: 1
B101: 0 | C101: 1 | D101: 6 | E101: 5 | F101: 3 | G101: 5 | L101: 0.1843112149 | M101: -0.2037223876 | N101: 0.1503410743 | O101: 0 | P101: 1
B102: 0 | C102: 1 | D102: 4 | E102: 7 | F102: 2 | G102: 6 | L102: 0.2292119384 | M102: -0.2603418309 | N102: 0.176674277 | O102: 0 | P102: 1
B103: 1 | C103: 1 | D103: 7 | E103: 7 | F103: 1 | G103: 7 | L103: 0.6898863953 | M103: -0.3712283394 | N103: 0.2139435242 | O103: 1 | P103: 1
B104: 1 | C104: 1 | D104: 7 | E104: 7 | F104: 2 | G104: 7 | L104: 0.5832639869 | M104: -0.5391153874 | N104: 0.2430672648 | O104: 1 | P104: 1
B105: 1 | C105: 1 | D105: 7 | E105: 6 | F105: 2 | G105: 7 | L105: 0.5316323938 | M105: -0.6318030176 | N105: 0.2489998823 | O105: 1 | P105: 1
B106: 0 | C106: 1 | D106: 7 | E106: 6 | F106: 1 | G106: 7 | L106: 0.6433881131 | M106: -1.03110724 | N106: 0.229440573 | O106: 1 | P106: 0
B107: 1 | C107: 1 | D107: 7 | E107: 7 | F107: 1 | G107: 7 | L107: 0.6898863953 | M107: -0.3712283394 | N107: 0.213943844 | O107: 1 | P107: 1
B108: 0 | C108: 1 | D108: 7 | E108: 3 | F108: 3 | G108: 7 | L108: 0.2758448799 | M108: -0.3227496553 | N108: 0.1997548707 | O108: 0 | P108: 1
B109: 0 | C109: 1 | D109: 5 | E109: 4 | F109: 1 | G109: 7 | L109: 0.3336878622 | M109: -0.4059970429 | N109: 0.2223407112 | O109: 0 | P109: 1
B110: 0 | C110: 1 | D110: 7 | E110: 7 | F110: 3 | G110: 6 | L110: 0.405607574 | M110: -0.5202155279 | N110: 0.2410907111 | O110: 0 | P110: 1
B111: 0 | C111: 1 | D111: 7 | E111: 6 | F111: 2 | G111: 5 | L111: 0.4053602205 | M111: -0.5197994695 | N111: 0.2410438179 | O111: 0 | P111: 1
B112: 0 | C112: 1 | D112: 7 | E112: 6 | F112: 4 | G112: 6 | L112: 0.258257868 | M112: -0.2987536273 | N112: 0.1915613982 | O112: 0 | P112: 1
B113: 1 | C113: 1 | D113: 7 | E113: 7 | F113: 1 | G113: 7 | L113: 0.6898863953 | M113: -0.3712283394 | N113: 0.2139437923 | O113: 1 | P113: 1
B114: 0 | C114: 1 | D114: 5 | E114: 7 | F114: 2 | G114: 7 | L114: 0.3713361192 | M114: -0.4641585358 | N114: 0.2334459824 | O114: 0 | P114: 1
B115: 1 | C115: 1 | D115: 7 | E115: 7 | F115: 1 | G115: 7 | L115: 0.6898863953 | M115: -0.3712283394 | N115: 0.2139436684 | O115: 1 | P115: 1
B116: 0 | C116: 1 | D116: 5 | E116: 7 | F116: 2 | G116: 5 | L116: 0.261851475 | M116: -0.3036102213 | N116: 0.193285523 | O116: 0 | P116: 1
B117: 0 | C117: 1 | D117: 4 | E117: 7 | F117: 1 | G117: 7 | L117: 0.3788515133 | M117: -0.4761851166 | N117: 0.2353232132 | O117: 0 | P117: 1
B118: 0 | C118: 1 | D118: 7 | E118: 5 | F118: 1 | G118: 5 | L118: 0.4677282914 | M118: -0.6306011896 | N118: 0.2489588819 | O118: 0 | P118: 1
B119: 0 | C119: 1 | D119: 4 | E119: 7 | F119: 4 | G119: 6 | L119: 0.1053099916 | M119: -0.11127798 | N119: 0.09422059556 | O119: 0 | P119: 1
B120: 0 | C120: 1 | D120: 5 | E120: 7 | F120: 4 | G120: 5 | L120: 0.1231243659 | M120: -0.131390105 | N120: 0.1079648713 | O120: 0 | P120: 1
B121: 0 | C121: 1 | D121: 7 | E121: 2 | F121: 1 | G121: 7 | L121: 0.4383521506 | M121: -0.576880228 | N121: 0.246199835 | O121: 0 | P121: 1
B122: 0 | C122: 1 | D122: 6 | E122: 6 | F122: 1 | G122: 5 | L122: 0.4131117196 | M122: -0.5329208003 | N122: 0.2424511379 | O122: 0 | P122: 1
B123: 0 | C123: 1 | D123: 5 | E123: 4 | F123: 3 | G123: 6 | L123: 0.1331610285 | M123: -0.1429020501 | N123: 0.1154298066 | O123: 0 | P123: 1
B124: 0 | C124: 1 | D124: 6 | E124: 4 | F124: 2 | G124: 2 | L124: 0.1193802913 | M124: -0.127129405 | N124: 0.1051291555 | O124: 0 | P124: 1
B125: 1 | C125: 1 | D125: 6 | E125: 7 | F125: 1 | G125: 7 | L125: 0.5910361028 | M125: -0.5258781758 | N125: 0.2417130498 | O125: 1 | P125: 1
B126: 0 | C126: 1 | D126: 5 | E126: 6 | F126: 5 | G126: 6 | L126: 0.08462373402 | M126: -0.08842007859 | N126: 0.07746259514 | O126: 0 | P126: 1
B127: 1 | C127: 1 | D127: 4 | E127: 6 | F127: 1 | G127: 3 | L127: 0.151398926 | M127: -1.887837031 | N127: 0.1284774459 | O127: 0 | P127: 0
B128: 1 | C128: 1 | D128: 7 | E128: 7 | F128: 1 | G128: 7 | L128: 0.6898863953 | M128: -0.3712283394 | N128: 0.2139439295 | O128: 1 | P128: 1
B129: 1 | C129: 1 | D129: 7 | E129: 6 | F129: 4 | G129: 5 | L129: 0.2124898018 | M129: -1.548861283 | N129: 0.1673386265 | O129: 0 | P129: 0
B130: 1 | C130: 1 | D130: 7 | E130: 5 | F130: 1 | G130: 7 | L130: 0.5940206915 | M130: -0.5208411261 | N130: 0.2411607027 | O130: 1 | P130: 1
B131: 1 | C131: 1 | D131: 7 | E131: 7 | F131: 1 | G131: 7 | L131: 0.6898863953 | M131: -0.3712283394 | N131: 0.2139435295 | O131: 1 | P131: 1
B132: 0 | C132: 1 | D132: 3 | E132: 7 | F132: 1 | G132: 7 | L132: 0.2837849292 | M132: -0.3337747789 | N132: 0.2032515281 | O132: 0 | P132: 1
B133: 0 | C133: 1 | D133: 7 | E133: 7 | F133: 1 | G133: 7 | L133: 0.6898863953 | M133: -1.170816582 | N133: 0.2139434333 | O133: 1 | P133: 0
B134: 0 | C134: 1 | D134: 7 | E134: 5 | F134: 1 | G134: 6 | L134: 0.5313768925 | M134: -0.7579564423 | N134: 0.249015524 | O134: 1 | P134: 0
B135: 0 | C135: 1 | D135: 4 | E135: 7 | F135: 3 | G135: 4 | L135: 0.1010105636 | M135: -0.106483995 | N135: 0.09080774739 | O135: 0 | P135: 1
B136: 0 | C136: 1 | D136: 7 | E136: 5 | F136: 1 | G136: 6 | L136: 0.5313768925 | M136: -0.7579564423 | N136: 0.2490158811 | O136: 1 | P136: 0
B137: 0 | C137: 1 | D137: 7 | E137: 7 | F137: 1 | G137: 7 | L137: 0.6898863953 | M137: -1.170816582 | N137: 0.2139434115 | O137: 1 | P137: 0
B138: 0 | C138: 1 | D138: 6 | E138: 4 | F138: 1 | G138: 5 | L138: 0.3164590541 | M138: -0.3804687184 | N138: 0.2163128713 | O138: 0 | P138: 1
B139: 0 | C139: 1 | D139: 6 | E139: 7 | F139: 1 | G139: 3 | L139: 0.3426500711 | M139: -0.419538786 | N139: 0.2252415074 | O139: 0 | P139: 1
B140: 1 | C140: 1 | D140: 7 | E140: 7 | F140: 1 | G140: 7 | L140: 0.6898863953 | M140: -0.3712283394 | N140: 0.2139435815 | O140: 1 | P140: 1
B141: 1 | C141: 1 | D141: 7 | E141: 5 | F141: 5 | G141: 4 | L141: 0.09640605922 | M141: -2.339186224 | N141: 0.0871120382 | O141: 0 | P141: 0
B142: 0 | C142: 1 | D142: 7 | E142: 4 | F142: 7 | G142: 6 | L142: 0.05395073692 | M142: -0.05546063615 | N142: 0.05104006454 | O142: 0 | P142: 1
B143: 1 | C143: 1 | D143: 7 | E143: 7 | F143: 2 | G143: 6 | L143: 0.520300755 | M143: -0.6533482595 | N143: 0.2495880725 | O143: 1 | P143: 1
B144: 1 | C144: 1 | D144: 7 | E144: 7 | F144: 1 | G144: 7 | L144: 0.6898863953 | M144: -0.3712283394 | N144: 0.2139439239 | O144: 1 | P144: 1
B145: 1 | C145: 1 | D145: 7 | E145: 7 | F145: 1 | G145: 7 | L145: =1/(1+EXP(-(E$3+E$4*D145+E$5*E145+E$6*F145+E$7*G145))) -> 0.6898863953 | M145: =B145*LN(L145)+(1-B145)*LN(1-L145) -> -0.3712283394 | N145: 0.213943394 | O145: 1 | P145: =IF(B145=O145,1,0) -> 1
B146: 1 | C146: 1 | D146: 7 | E146: 4 | F146: 1 | G146: 7 | L146: 0.5426768615 | M146: -0.6112412346 | N146: =L146*(1-L146)+0.000001*RAND() -> 0.2481796 | O146: =IF(L146>0.5,1,0) -> 1 | P146: 1
B147: 1 | C147: 1 | D147: 7 | E147: 7 | F147: 1 | G147: 7 | L147: 0.6898863953 | M147: -0.3712283394 | N147: 0.2139432984 | O147: 1 | P147: 1
B148: 1 | C148: 1 | D148: 6 | E148: 5 | F148: 3 | G148: 3 | L148: 0.1194882038 | M148: -2.124537626 | N148: 0.1052107951 | O148: 0 | P148: 0
B149: 1 | C149: 1 | D149: 7 | E149: 7 | F149: 1 | G149: 7 | L149: 0.6898863953 | M149: -0.3712283394 | N149: 0.2139436618 | O149: 1 | P149: 1
B150: 1 | C150: 1 | D150: 7 | E150: 7 | F150: 1 | G150: 7 | L150: 0.6898863953 | M150: -0.3712283394 | N150: 0.2139434548 | O150: 1 | P150: 1
B151: 0 | C151: 1 | D151: 4 | E151: 5 | F151: 4 | G151: 3 | L151: 0.03477833905 | M151: -0.03539750356 | N151: 0.03356921648 | O151: 0 | P151: 1
B152: 0 | C152: 1 | D152: 7 | E152: 7 | F152: 1 | G152: 7 | L152: 0.6898863953 | M152: -1.170816582 | N152: 0.2139441519 | O152: 1 | P152: 0
B153: 1 | C153: 1 | D153: 7 | E153: 4 | F153: 1 | G153: 7 | L153: 0.5426768615 | M153: -0.6112412346 | N153: 0.2481794771 | O153: 1 | P153: 1
B154: 1 | C154: 1 | D154: 7 | E154: 6 | F154: 1 | G154: 6 | L154: 0.5830145596 | M154: -0.5395431194 | N154: 0.2431087158 | O154: 1 | P154: 1
B155: 1 | C155: 1 | D155: 7 | E155: 5 | F155: 1 | G155: 7 | L155: 0.5940206915 | M155: -0.5208411261 | N155: 0.24116094 | O155: 1 | P155: 1
B156: 1 | C156: 1 | D156: 7 | E156: 5 | F156: 1 | G156: 7 | L156: 0.5940206915 | M156: -0.5208411261 | N156: 0.2411607056 | O156: 1 | P156: 1
B157: 0 | C157: 1 | D157: 6 | E157: 5 | F157: 1 | G157: 3 | L157: 0.255311232 | M157: -0.294788909 | N157: 0.1901283831 | O157: 0 | P157: 1
B158: 1 | C158: 1 | D158: 7 | E158: 7 | F158: 1 | G158: 7 | L158: 0.6898863953 | M158: -0.3712283394 | N158: 0.2139438461 | O158: 1 | P158: 1
B159: 0 | C159: 1 | D159: 4 | E159: 5 | F159: 1 | G159: 4 | L159: 0.1573313346 | M159: -0.1711814405 | N159: 0.1325783631 | O159: 0 | P159: 1
B160: 0 | C160: 1 | D160: 4 | E160: 7 | F160: 2 | G160: 4 | L160: 0.151530801 | M160: -0.1643214956 | N160: 0.1285697774 | O160: 0 | P160: 1
B161: 1 | C161: 1 | D161: 7 | E161: 7 | F161: 1 | G161: 6 | L161: 0.6328932282 | M161: -0.4574535468 | N161: 0.232340172 | O161: 1 | P161: 1
B162: 0 | C162: 1 | D162: 6 | E162: 7 | F162: 1 | G162: 6 | L162: 0.5282974733 | M162: -0.7514067321 | N162: 0.2491993568 | O162: 1 | P162: 0
B163: 0 | C163: 1 | D163: 7 | E163: 4 | F163: 2 | G163: 5 | L163: 0.3095645211 | M163: -0.3704327517 | N163: 0.2137353241 | O163: 0 | P163: 1
B164: 1 | C164: 1 | D164: 5 | E164: 7 | F164: 2 | G164: 7 | L164: 0.3713361192 | M164: -0.9906476449 | N164: 0.2334459299 | O164: 0 | P164: 0
B165: 0 | C165: 1 | D165: 7 | E165: 5 | F165: 1 | G165: 6 | L165: 0.5313768925 | M165: -0.7579564423 | N165: 0.2490157239 | O165: 1 | P165: 0
B166: 0 | C166: 1 | D166: 2 | E166: 6 | F166: 4 | G166: 6 | L166: 0.03872656205 | M166: -0.03949637567 | N166: 0.03722687211 | O166: 0 | P166: 1
B167: 0 | C167: 1 | D167: 4 | E167: 5 | F167: 3 | G167: 7 | L167: 0.1370270821 | M167: -0.1473719697 | N167: 0.1182514395 | O167: 0 | P167: 1
B168: 1 | C168: 1 | D168: 7 | E168: 7 | F168: 1 | G168: 7 | L168: 0.6898863953 | M168: -0.3712283394 | N168: 0.213943958 | O168: 1 | P168: 1
B169: 0 | C169: 1 | D169: 7 | E169: 7 | F169: 1 | G169: 7 | L169: 0.6898863953 | M169: -1.170816582 | N169: 0.2139437065 | O169: 1 | P169: 0
B170: 1 | C170: 1 | D170: 7 | E170: 7 | F170: 1 | G170: 7 | L170: 0.6898863953 | M170: -0.3712283394 | N170: 0.2139439688 | O170: 1 | P170: 1
B171: 0 | C171: 1 | D171: 7 | E171: 5 | F171: 3 | G171: 6 | L171: 0.3097838723 | M171: -0.3707505018 | N171: 0.2138186303 | O171: 0 | P171: 1
B172: 1 | C172: 1 | D172: 6 | E172: 7 | F172: 1 | G172: 7 | L172: 0.5910361028 | M172: -0.5258781758 | N172: 0.2417130469 | O172: 1 | P172: 1
B173: 0 | C173: 1 | D173: 1 | E173: 7 | F173: 6 | G173: 4 | L173: 0.007612937028 | M173: -0.007642063351 | N173: 0.007555156186 | O173: 0 | P173: 1
B174: 0 | C174: 1 | D174: 6 | E174: 4 | F174: 2 | G174: 7 | L174: 0.3265973195 | M174: -0.3954117917 | N174: 0.2199324794 | O174: 0 | P174: 1
B175: 1 | C175: 1 | D175: 6 | E175: 7 | F175: 1 | G175: 7 | L175: 0.5910361028 | M175: -0.5258781758 | N175: 0.2417133773 | O175: 1 | P175: 1
B176: 1 | C176: 1 | D176: 7 | E176: 6 | F176: 1 | G176: 7 | L176: 0.6433881131 | M176: -0.4410071395 | N176: 0.229440008 | O176: 1 | P176: 1
B177: 0 | C177: 1 | D177: 6 | E177: 4 | F177: 1 | G177: 7 | L177: 0.4353110529 | M177: -0.5714802356 | N177: 0.2458163005 | O177: 0 | P177: 1
B178: 1 | C178: 1 | D178: 4 | E178: 4 | F178: 4 | G178: 4 | L178: 0.03633676275 | M178: -3.314925302 | N178: 0.03501659132 | O178: 0 | P178: 0
B179: 0 | C179: 1 | D179: 7 | E179: 7 | F179: 1 | G179: 7 | L179: 0.6898863953 | M179: -1.170816582 | N179: 0.2139436448 | O179: 1 | P179: 0
B180: 0 | C180: 1 | D180: 3 | E180: 2 | F180: 2 | G180: 5 | L180: 0.04990293405 | M180: -0.05119112492 | N180: 0.04741356279 | O180: 0 | P180: 1
B181: 1 | C181: 1 | D181: 7 | E181: 6 | F181: 1 | G181: 7 | L181: 0.6433881131 | M181: -0.4410071395 | N181: 0.2294403161 | O181: 1 | P181: 1
B182: 0 | C182: 1 | D182: 7 | E182: 5 | F182: 4 | G182: 5 | L182: 0.1795395091 | M182: -0.1978895221 | N182: 0.1473054121 | O182: 0 | P182: 1
B183: 0 | C183: 1 | D183: 6 | E183: 7 | F183: 1 | G183: 6 | L183: 0.5282974733 | M183: -0.7514067321 | N183: 0.2491999194 | O183: 1 | P183: 0
B184: 1 | C184: 1 | D184: 7 | E184: 6 | F184: 3 | G184: 6 | L184: 0.3562582454 | M184: -1.032099403 | N184: 0.2293391496 | O184: 0 | P184: 0
B185: 0 | C185: 1 | D185: 5 | E185: 7 | F185: 1 | G185: 7 | L185: 0.4842332793 | M185: -0.6621007075 | N185: 0.2497520679 | O185: 0 | P185: 1
B186: 1 | C186: 1 | D186: 6 | E186: 7 | F186: 1 | G186: 7 | L186: 0.5910361028 | M186: -0.5258781758 | N186: 0.241713319 | O186: 1 | P186: 1
B187: 0 | C187: 1 | D187: 6 | E187: 7 | F187: 2 | G187: 7 | L187: 0.476230159 | M187: -0.6467029259 | N187: 0.2494350127 | O187: 0 | P187: 1
B188: 0 | C188: 1 | D188: 5 | E188: 7 | F188: 3 | G188: 5 | L188: 0.182459992 | M188: -0.2014554379 | N188: 0.1491690628 | O188: 0 | P188: 1
B189: 0 | C189: 1 | D189: 5 | E189: 7 | F189: 3 | G189: 6 | L189: 0.2235964313 | M189: -0.2530828312 | N189: 0.1736011351 | O189: 0 | P189: 1
B190: 0 | C190: 1 | D190: 4 | E190: 6 | F190: 2 | G190: 4 | L190: 0.1265146757 | M190: -0.1352639506 | N190: 0.1105087472 | O190: 0 | P190: 1
B191: 0 | C191: 1 | D191: 6 | E191: 4 | F191: 2 | G191: 7 | L191: 0.3265973195 | M191: -0.3954117917 | N191: 0.2199320462 | O191: 0 | P191: 1
B192: 1 | C192: 1 | D192: 7 | E192: 5 | F192: 1 | G192: 7 | L192: 0.5940206915 | M192: -0.5208411261 | N192: 0.2411608146 | O192: 1 | P192: 1
B193: 0 | C193: 1 | D193: 6 | E193: 5 | F193: 4 | G193: 4 | L193: 0.09923552675 | M193: -0.1045114615 | N193: 0.08938842002 | O193: 0 | P193: 1
B194: 1 | C194: 1 | D194: 7 | E194: 5 | F194: 1 | G194: 7 | L194: 0.5940206915 | M194: -0.5208411261 | N194: 0.241160141 | O194: 1 | P194: 1
B195: 1 | C195: 1 | D195: 7 | E195: 5 | F195: 1 | G195: 7 | L195: 0.5940206915 | M195: -0.5208411261 | N195: 0.2411607965 | O195: 1 | P195: 1
B196: 1 | C196: 1 | D196: 7 | E196: 6 | F196: 1 | G196: 7 | L196: 0.6433881131 | M196: -0.4410071395 | N196: 0.2294406079 | O196: 1 | P196: 1
B197: 1 | C197: 1 | D197: 6 | E197: 7 | F197: 1 | G197: 7 | L197: 0.5910361028 | M197: -0.5258781758 | N197: 0.2417127488 | O197: 1 | P197: 1
B198: 0 | C198: 1 | D198: 4 | E198: 7 | F198: 2 | G198: 6 | L198: 0.2292119384 | M198: -0.2603418309 | N198: 0.1766744117 | O198: 0 | P198: 1
B199: 0 | C199: 1 | D199: 4 | E199: 6 | F199: 3 | G199: 4 | L199: 0.08351386109 | M199: -0.08720833576 | N199: 0.07653953137 | O199: 0 | P199: 1
B200: 1 | C200: 1 | D200: 7 | E200: 4 | F200: 1 | G200: 7 | L200: 0.5426768615 | M200: -0.6112412346 | N200: 0.2481790033 | O200: 1 | P200: 1
B201: 1 | C201: 1 | D201: 7 | E201: 7 | F201: 1 | G201: 7 | L201: 0.6898863953 | M201: -0.3712283394 | N201: 0.2139440458 | O201: 1 | P201: 1
B202: 1 | C202: 1 | D202: 3 | E202: 6 | F202: 3 | G202: 5 | L202: 0.07096674832 | M202: -2.645543845 | N202: 0.06593097346 | O202: 0 | P202: 0
... 1314 more rows
